DepartmentFamily,Entity,Date,ExpenseType,ExpenseArea,Supplier,TransactionNumber,Amount,VATRegistrationNo
BEIS,The Insolvency Service,02/10/2017,Investigation and Enforcement Costs,CRIMINAL ENFORCEMENT                                                                                ,Mendip Media Group Ltd,BA0000308364,81.24,609546425
BEIS,The Insolvency Service,02/10/2017,Investigation and Enforcement Costs,CRIMINAL ENFORCEMENT                                                                                ,Mendip Media Group Ltd,BA0000308365,59.44,609546425
BEIS,The Insolvency Service,02/10/2017,Investigation and Enforcement Costs,CRIMINAL ENFORCEMENT                                                                                ,Mendip Media Group Ltd,BA0000308367,33.53,609546425
BEIS,The Insolvency Service,02/10/2017,Investigation and Enforcement Costs,CRIMINAL ENFORCEMENT                                                                                ,Mendip Media Group Ltd,BA0000308379,854.88,609546425
BEIS,The Insolvency Service,02/10/2017,Employee Related Costs,PEOPLE & CAPABILITY                                                                                 ,Staff Payment,BA0000308378,193.00,
BEIS,The Insolvency Service,02/10/2017,Insolvency Case Related Costs,OFFICIAL RECEIVER SERVICES                                                                          ,COMPANIES HOUSE,BA0000308370,4.00,GD255
BEIS,The Insolvency Service,02/10/2017,Insolvency Case Related Costs,OFFICIAL RECEIVER SERVICES                                                                          ,THE STATIONERY OFFICE LTD,BA0000308368,144.48,662774703
BEIS,The Insolvency Service,02/10/2017,Insolvency Case Related Costs,OFFICIAL RECEIVER SERVICES                                                                          ,THE STATIONERY OFFICE LTD,BA0000308372,144.48,662774703
BEIS,The Insolvency Service,02/10/2017,Insolvency Case Related Costs,OFFICIAL RECEIVER SERVICES                                                                          ,THE STATIONERY OFFICE LTD,BA0000308371,216.72,662774703
BEIS,The Insolvency Service,02/10/2017,Insolvency Case Related Costs,OFFICIAL RECEIVER SERVICES                                                                          ,THE STATIONERY OFFICE LTD,BA0000308373,72.24,662774703
BEIS,The Insolvency Service,02/10/2017,Insolvency Case Related Costs,OFFICIAL RECEIVER SERVICES                                                                          ,THE STATIONERY OFFICE LTD,BA0000308375,72.24,662774703
BEIS,The Insolvency Service,02/10/2017,Insolvency Case Related Costs,OFFICIAL RECEIVER SERVICES                                                                          ,THE STATIONERY OFFICE LTD,BA0000308376,144.48,662774703
BEIS,The Insolvency Service,02/10/2017,Office Supplies and Services,CRIMINAL ENFORCEMENT                                                                                ,Staff Payment,BA0000308378,2.08,                      
BEIS,The Insolvency Service,02/10/2017,Travel and Subsistence,CRIMINAL ENFORCEMENT                                                                                ,Staff Payment,BA0000308378,3.60,                      
BEIS,The Insolvency Service,02/10/2017,Travel and Subsistence,CRIMINAL ENFORCEMENT                                                                                ,Staff Payment,BA0000308378,4.52,                      
BEIS,The Insolvency Service,02/10/2017,Travel and Subsistence,CRIMINAL ENFORCEMENT                                                                                ,Staff Payment,BA0000308378,5.00,                      
BEIS,The Insolvency Service,02/10/2017,Travel and Subsistence,CRIMINAL ENFORCEMENT                                                                                ,Staff Payment,BA0000308378,5.00,                      
BEIS,The Insolvency Service,02/10/2017,Travel and Subsistence,CRIMINAL ENFORCEMENT                                                                                ,Staff Payment,BA0000308378,15.00,                      
BEIS,The Insolvency Service,02/10/2017,Travel and Subsistence,CRIMINAL ENFORCEMENT                                                                                ,Staff Payment,BA0000308378,24.75,                      
BEIS,The Insolvency Service,02/10/2017,Travel and Subsistence,CRIMINAL ENFORCEMENT                                                                                ,Staff Payment,BA0000308378,44.10,                      
BEIS,The Insolvency Service,02/10/2017,Travel and Subsistence,CRIMINAL ENFORCEMENT                                                                                ,Staff Payment,BA0000308378,44.55,                      
BEIS,The Insolvency Service,02/10/2017,Travel and Subsistence,CRIMINAL ENFORCEMENT                                                                                ,Staff Payment,BA0000308378,70.50,                      
BEIS,The Insolvency Service,02/10/2017,Travel and Subsistence,CRIMINAL ENFORCEMENT                                                                                ,Staff Payment,BA0000308377,3.00,                      
BEIS,The Insolvency Service,02/10/2017,Travel and Subsistence,CRIMINAL ENFORCEMENT                                                                                ,Staff Payment,BA0000308377,5.00,                      
BEIS,The Insolvency Service,02/10/2017,Travel and Subsistence,CRIMINAL ENFORCEMENT                                                                                ,Staff Payment,BA0000308377,11.70,                      
BEIS,The Insolvency Service,02/10/2017,Travel and Subsistence,CRIMINAL ENFORCEMENT                                                                                ,Staff Payment,BA0000308377,12.00,                      
BEIS,The Insolvency Service,02/10/2017,Travel and Subsistence,CRIMINAL ENFORCEMENT                                                                                ,Staff Payment,BA0000308377,15.00,                      
BEIS,The Insolvency Service,02/10/2017,Travel and Subsistence,CRIMINAL ENFORCEMENT                                                                                ,Staff Payment,BA0000308377,18.00,                      
BEIS,The Insolvency Service,02/10/2017,Travel and Subsistence,CRIMINAL ENFORCEMENT                                                                                ,Staff Payment,BA0000308377,20.00,                      
BEIS,The Insolvency Service,02/10/2017,Travel and Subsistence,CRIMINAL ENFORCEMENT                                                                                ,Staff Payment,BA0000308377,24.30,                      
BEIS,The Insolvency Service,02/10/2017,Travel and Subsistence,CRIMINAL ENFORCEMENT                                                                                ,Staff Payment,BA0000308377,40.05,                      
BEIS,The Insolvency Service,02/10/2017,Travel and Subsistence,CRIMINAL ENFORCEMENT                                                                                ,Staff Payment,BA0000308377,65.00,                      
BEIS,The Insolvency Service,02/10/2017,Travel and Subsistence,INVESTIGATIONS & ENFORCEMENT                                                                        ,Staff Payment,BA0000308378,2.25,
BEIS,The Insolvency Service,02/10/2017,Travel and Subsistence,INVESTIGATIONS & ENFORCEMENT                                                                        ,Staff Payment,BA0000308378,2.80,
BEIS,The Insolvency Service,02/10/2017,Travel and Subsistence,INVESTIGATIONS & ENFORCEMENT                                                                        ,Staff Payment,BA0000308378,5.00,
BEIS,The Insolvency Service,02/10/2017,Travel and Subsistence,INVESTIGATIONS & ENFORCEMENT                                                                        ,Staff Payment,BA0000308378,15.00,
BEIS,The Insolvency Service,02/10/2017,Travel and Subsistence,INVESTIGATIONS & ENFORCEMENT                                                                        ,Staff Payment,BA0000308378,1.80,
BEIS,The Insolvency Service,02/10/2017,Travel and Subsistence,INVESTIGATIONS & ENFORCEMENT                                                                        ,Staff Payment,BA0000308378,2.25,
BEIS,The Insolvency Service,02/10/2017,Travel and Subsistence,INVESTIGATIONS & ENFORCEMENT                                                                        ,Staff Payment,BA0000308378,2.80,
BEIS,The Insolvency Service,02/10/2017,Travel and Subsistence,INVESTIGATIONS & ENFORCEMENT                                                                        ,Staff Payment,BA0000308378,5.00,
BEIS,The Insolvency Service,02/10/2017,Travel and Subsistence,INVESTIGATIONS & ENFORCEMENT                                                                        ,Staff Payment,BA0000308378,15.00,
BEIS,The Insolvency Service,02/10/2017,Travel and Subsistence,INVESTIGATIONS & ENFORCEMENT                                                                        ,Staff Payment,BA0000308378,74.25,
BEIS,The Insolvency Service,02/10/2017,Travel and Subsistence,INVESTIGATIONS & ENFORCEMENT                                                                        ,Staff Payment,BA0000308378,76.95,
BEIS,The Insolvency Service,02/10/2017,Travel and Subsistence,INVESTIGATIONS & ENFORCEMENT                                                                        ,Staff Payment,BA0000308378,4.64,
BEIS,The Insolvency Service,02/10/2017,Travel and Subsistence,INVESTIGATIONS & ENFORCEMENT                                                                        ,Staff Payment,BA0000308378,4.80,
BEIS,The Insolvency Service,02/10/2017,Travel and Subsistence,INVESTIGATIONS & ENFORCEMENT                                                                        ,Staff Payment,BA0000308378,4.99,
BEIS,The Insolvency Service,02/10/2017,Travel and Subsistence,INVESTIGATIONS & ENFORCEMENT                                                                        ,Staff Payment,BA0000308378,12.00,
BEIS,The Insolvency Service,02/10/2017,Travel and Subsistence,INVESTIGATIONS & ENFORCEMENT                                                                        ,Staff Payment,BA0000308378,4.22,
BEIS,The Insolvency Service,02/10/2017,Travel and Subsistence,INVESTIGATIONS & ENFORCEMENT                                                                        ,Staff Payment,BA0000308378,7.50,
BEIS,The Insolvency Service,02/10/2017,Travel and Subsistence,INVESTIGATIONS & ENFORCEMENT                                                                        ,Staff Payment,BA0000308378,3.20,
BEIS,The Insolvency Service,02/10/2017,Travel and Subsistence,INVESTIGATIONS & ENFORCEMENT                                                                        ,Staff Payment,BA0000308378,3.50,
BEIS,The Insolvency Service,02/10/2017,Travel and Subsistence,INVESTIGATIONS & ENFORCEMENT                                                                        ,Staff Payment,BA0000308378,3.95,
BEIS,The Insolvency Service,02/10/2017,Travel and Subsistence,INVESTIGATIONS & ENFORCEMENT                                                                        ,Staff Payment,BA0000308378,4.30,
BEIS,The Insolvency Service,02/10/2017,Travel and Subsistence,INVESTIGATIONS & ENFORCEMENT                                                                        ,Staff Payment,BA0000308378,4.47,
BEIS,The Insolvency Service,02/10/2017,Travel and Subsistence,INVESTIGATIONS & ENFORCEMENT                                                                        ,Staff Payment,BA0000308378,5.00,
BEIS,The Insolvency Service,02/10/2017,Travel and Subsistence,INVESTIGATIONS & ENFORCEMENT                                                                        ,Staff Payment,BA0000308378,2.40,
BEIS,The Insolvency Service,02/10/2017,Travel and Subsistence,INVESTIGATIONS & ENFORCEMENT                                                                        ,Staff Payment,BA0000308378,5.30,
BEIS,The Insolvency Service,02/10/2017,Travel and Subsistence,INVESTIGATIONS & ENFORCEMENT                                                                        ,Staff Payment,BA0000308378,11.80,
BEIS,The Insolvency Service,02/10/2017,Travel and Subsistence,INVESTIGATIONS & ENFORCEMENT                                                                        ,Staff Payment,BA0000308378,2.30,
BEIS,The Insolvency Service,02/10/2017,Travel and Subsistence,INVESTIGATIONS & ENFORCEMENT                                                                        ,Staff Payment,BA0000308378,3.60,
BEIS,The Insolvency Service,02/10/2017,Travel and Subsistence,INVESTIGATIONS & ENFORCEMENT                                                                        ,Staff Payment,BA0000308378,11.80,
BEIS,The Insolvency Service,02/10/2017,Travel and Subsistence,INVESTIGATIONS & ENFORCEMENT                                                                        ,Staff Payment,BA0000308378,2.45,
BEIS,The Insolvency Service,02/10/2017,Travel and Subsistence,INVESTIGATIONS & ENFORCEMENT                                                                        ,Staff Payment,BA0000308378,3.25,
BEIS,The Insolvency Service,02/10/2017,Travel and Subsistence,INVESTIGATIONS & ENFORCEMENT                                                                        ,Staff Payment,BA0000308378,3.95,
BEIS,The Insolvency Service,02/10/2017,Travel and Subsistence,INVESTIGATIONS & ENFORCEMENT                                                                        ,Staff Payment,BA0000308378,4.30,
BEIS,The Insolvency Service,02/10/2017,Travel and Subsistence,INVESTIGATIONS & ENFORCEMENT                                                                        ,Staff Payment,BA0000308378,4.40,
BEIS,The Insolvency Service,02/10/2017,Travel and Subsistence,INVESTIGATIONS & ENFORCEMENT                                                                        ,Staff Payment,BA0000308378,4.75,
BEIS,The Insolvency Service,02/10/2017,Travel and Subsistence,INVESTIGATIONS & ENFORCEMENT                                                                        ,Staff Payment,BA0000308378,5.00,
BEIS,The Insolvency Service,02/10/2017,Travel and Subsistence,INVESTIGATIONS & ENFORCEMENT                                                                        ,Staff Payment,BA0000308378,5.90,
BEIS,The Insolvency Service,02/10/2017,Travel and Subsistence,INVESTIGATIONS & ENFORCEMENT                                                                        ,Staff Payment,BA0000308378,12.09,
BEIS,The Insolvency Service,02/10/2017,Travel and Subsistence,INVESTIGATIONS & ENFORCEMENT                                                                        ,Staff Payment,BA0000308378,13.29,
BEIS,The Insolvency Service,02/10/2017,Travel and Subsistence,INVESTIGATIONS & ENFORCEMENT                                                                        ,Staff Payment,BA0000308378,17.70,
BEIS,The Insolvency Service,02/10/2017,Travel and Subsistence,INVESTIGATIONS & ENFORCEMENT                                                                        ,Staff Payment,BA0000308378,18.90,
BEIS,The Insolvency Service,02/10/2017,Travel and Subsistence,INVESTIGATIONS & ENFORCEMENT                                                                        ,Staff Payment,BA0000308378,37.80,
BEIS,The Insolvency Service,02/10/2017,Travel and Subsistence,OFFICIAL RECEIVER SERVICES                                                                          ,Staff Payment,BA0000308378,10.50,
BEIS,The Insolvency Service,02/10/2017,Travel and Subsistence,OFFICIAL RECEIVER SERVICES                                                                          ,Staff Payment,BA0000308378,10.35,
BEIS,The Insolvency Service,02/10/2017,Travel and Subsistence,OFFICIAL RECEIVER SERVICES                                                                          ,Staff Payment,BA0000308378,3.00,
BEIS,The Insolvency Service,02/10/2017,Travel and Subsistence,OFFICIAL RECEIVER SERVICES                                                                          ,Staff Payment,BA0000308378,9.00,
BEIS,The Insolvency Service,02/10/2017,Travel and Subsistence,PEOPLE & CAPABILITY                                                                                 ,Staff Payment,BA0000308378,18.00,
BEIS,The Insolvency Service,02/10/2017,Travel and Subsistence,PEOPLE & CAPABILITY                                                                                 ,Staff Payment,BA0000308378,18.00,
BEIS,The Insolvency Service,02/10/2017,Travel and Subsistence,PEOPLE & CAPABILITY                                                                                 ,Staff Payment,BA0000308378,18.00,
BEIS,The Insolvency Service,02/10/2017,Travel and Subsistence,PEOPLE & CAPABILITY                                                                                 ,Staff Payment,BA0000308378,18.00,
BEIS,The Insolvency Service,02/10/2017,Travel and Subsistence,PEOPLE & CAPABILITY                                                                                 ,Staff Payment,BA0000308378,5.00,
BEIS,The Insolvency Service,02/10/2017,Travel and Subsistence,PEOPLE & CAPABILITY                                                                                 ,Staff Payment,BA0000308378,11.39,
BEIS,The Insolvency Service,02/10/2017,Travel and Subsistence,PEOPLE & CAPABILITY                                                                                 ,Staff Payment,BA0000308378,4.85,
BEIS,The Insolvency Service,02/10/2017,Travel and Subsistence,PEOPLE & CAPABILITY                                                                                 ,Staff Payment,BA0000308378,5.00,
BEIS,The Insolvency Service,03/10/2017,Employee Related Costs,OFFICIAL RECEIVER SERVICES                                                                          ,Staff Payment,BA0000308404,8.70,
BEIS,The Insolvency Service,03/10/2017,Employee Related Costs,OFFICIAL RECEIVER SERVICES                                                                          ,Staff Payment,BA0000308404,2.40,
BEIS,The Insolvency Service,03/10/2017,Insolvency Case Related Costs,OFFICIAL RECEIVER SERVICES                                                                          ,HPI LTD,BA0000308399,18.66,942407139
BEIS,The Insolvency Service,03/10/2017,Insolvency Case Related Costs,OFFICIAL RECEIVER SERVICES                                                                          ,HPI LTD,BA0000308401,19.22,942407139
BEIS,The Insolvency Service,03/10/2017,Insolvency Case Related Costs,OFFICIAL RECEIVER SERVICES                                                                          ,HPI LTD,BA0000308402,3.73,942407139
BEIS,The Insolvency Service,03/10/2017,Insolvency Case Related Costs,OFFICIAL RECEIVER SERVICES                                                                          ,HPI LTD,BA0000308405,196.15,942407139
BEIS,The Insolvency Service,03/10/2017,Insolvency Case Related Costs,OFFICIAL RECEIVER SERVICES                                                                          ,Staff Payment,BA0000308404,180.00,
BEIS,The Insolvency Service,03/10/2017,Legal Costs,P&C - People Relations                                                                              ,GOVERNMENT LEGAL DEPARTMENT                                 ,BA0000308403,1078.50,888823066
BEIS,The Insolvency Service,03/10/2017,Office Supplies and Services,CRIMINAL ENFORCEMENT                                                                                ,Staff Payment,BA0000308404,2.08,                      
BEIS,The Insolvency Service,03/10/2017,Office Supplies and Services,CRIMINAL ENFORCEMENT                                                                                ,Staff Payment,BA0000308404,2.40,                      
BEIS,The Insolvency Service,03/10/2017,Office Supplies and Services,CRIMINAL ENFORCEMENT                                                                                ,Staff Payment,BA0000308404,2.65,                      
BEIS,The Insolvency Service,03/10/2017,Office Supplies and Services,CRIMINAL ENFORCEMENT                                                                                ,Staff Payment,BA0000308404,3.88,                      
BEIS,The Insolvency Service,03/10/2017,Office Supplies and Services,CRIMINAL ENFORCEMENT                                                                                ,Staff Payment,BA0000308404,2.84,                      
BEIS,The Insolvency Service,03/10/2017,Office Supplies and Services,FINANCE AND COMMERCIAL                                                                              ,Staff Payment,BA0000308404,43.20,                      
BEIS,The Insolvency Service,03/10/2017,Office Supplies and Services,OFFICIAL RECEIVER SERVICES                                                                          ,HPI LTD,BA0000308400,3.11,942407139
BEIS,The Insolvency Service,03/10/2017,Postage,CRIMINAL ENFORCEMENT                                                                                ,PITNEY BOWES FINANCE LTD,BA0000308406,245.20,
BEIS,The Insolvency Service,03/10/2017,Postage,OFFICIAL RECEIVER SERVICES                                                                          ,ROYAL MAIL GROUP LTD - RESPONSE SERVICES                   ,BA0000308407,41.77,243170002
BEIS,The Insolvency Service,03/10/2017,Travel and Subsistence,CRIMINAL ENFORCEMENT                                                                                ,Staff Payment,BA0000308404,2.35,                      
BEIS,The Insolvency Service,03/10/2017,Travel and Subsistence,CRIMINAL ENFORCEMENT                                                                                ,Staff Payment,BA0000308404,2.40,                      
BEIS,The Insolvency Service,03/10/2017,Travel and Subsistence,CRIMINAL ENFORCEMENT                                                                                ,Staff Payment,BA0000308404,3.00,                      
BEIS,The Insolvency Service,03/10/2017,Travel and Subsistence,CRIMINAL ENFORCEMENT                                                                                ,Staff Payment,BA0000308404,5.00,                      
BEIS,The Insolvency Service,03/10/2017,Travel and Subsistence,CRIMINAL ENFORCEMENT                                                                                ,Staff Payment,BA0000308404,4.95,                      
BEIS,The Insolvency Service,03/10/2017,Travel and Subsistence,CRIMINAL ENFORCEMENT                                                                                ,Staff Payment,BA0000308404,63.90,                      
BEIS,The Insolvency Service,03/10/2017,Travel and Subsistence,CRIMINAL ENFORCEMENT                                                                                ,Staff Payment,BA0000308404,3.59,                      
BEIS,The Insolvency Service,03/10/2017,Travel and Subsistence,CRIMINAL ENFORCEMENT                                                                                ,Staff Payment,BA0000308404,4.00,                      
BEIS,The Insolvency Service,03/10/2017,Travel and Subsistence,CRIMINAL ENFORCEMENT                                                                                ,Staff Payment,BA0000308404,4.60,                      
BEIS,The Insolvency Service,03/10/2017,Travel and Subsistence,CRIMINAL ENFORCEMENT                                                                                ,Staff Payment,BA0000308404,4.65,                      
BEIS,The Insolvency Service,03/10/2017,Travel and Subsistence,CRIMINAL ENFORCEMENT                                                                                ,Staff Payment,BA0000308404,5.00,                      
BEIS,The Insolvency Service,03/10/2017,Travel and Subsistence,CRIMINAL ENFORCEMENT                                                                                ,Staff Payment,BA0000308404,5.40,                      
BEIS,The Insolvency Service,03/10/2017,Travel and Subsistence,CRIMINAL ENFORCEMENT                                                                                ,Staff Payment,BA0000308404,17.00,                      
BEIS,The Insolvency Service,03/10/2017,Travel and Subsistence,CRIMINAL ENFORCEMENT                                                                                ,Staff Payment,BA0000308404,59.40,                      
BEIS,The Insolvency Service,03/10/2017,Travel and Subsistence,CRIMINAL ENFORCEMENT                                                                                ,Staff Payment,BA0000308404,79.20,                      
BEIS,The Insolvency Service,03/10/2017,Travel and Subsistence,CRIMINAL ENFORCEMENT                                                                                ,Staff Payment,BA0000308404,91.80,                      
BEIS,The Insolvency Service,03/10/2017,Travel and Subsistence,CRIMINAL ENFORCEMENT                                                                                ,Staff Payment,BA0000308404,92.70,                      
BEIS,The Insolvency Service,03/10/2017,Travel and Subsistence,CRIMINAL ENFORCEMENT                                                                                ,Staff Payment,BA0000308404,135.90,                      
BEIS,The Insolvency Service,03/10/2017,Travel and Subsistence,CRIMINAL ENFORCEMENT                                                                                ,Staff Payment,BA0000308404,6.20,                      
BEIS,The Insolvency Service,03/10/2017,Travel and Subsistence,CRIMINAL ENFORCEMENT                                                                                ,Staff Payment,BA0000308404,5.00,                      
BEIS,The Insolvency Service,03/10/2017,Travel and Subsistence,CRIMINAL ENFORCEMENT                                                                                ,Staff Payment,BA0000308404,50.85,                      
BEIS,The Insolvency Service,03/10/2017,Travel and Subsistence,CRIMINAL ENFORCEMENT                                                                                ,Staff Payment,BA0000308404,4.80,                      
BEIS,The Insolvency Service,03/10/2017,Travel and Subsistence,CRIMINAL ENFORCEMENT                                                                                ,Staff Payment,BA0000308404,5.00,                      
BEIS,The Insolvency Service,03/10/2017,Travel and Subsistence,CRIMINAL ENFORCEMENT                                                                                ,Staff Payment,BA0000308404,6.70,                      
BEIS,The Insolvency Service,03/10/2017,Travel and Subsistence,CRIMINAL ENFORCEMENT                                                                                ,Staff Payment,BA0000308404,9.53,                      
BEIS,The Insolvency Service,03/10/2017,Travel and Subsistence,CRIMINAL ENFORCEMENT                                                                                ,Staff Payment,BA0000308404,10.79,                      
BEIS,The Insolvency Service,03/10/2017,Travel and Subsistence,CRIMINAL ENFORCEMENT                                                                                ,Staff Payment,BA0000308404,12.75,                      
BEIS,The Insolvency Service,03/10/2017,Travel and Subsistence,CRIMINAL ENFORCEMENT                                                                                ,Staff Payment,BA0000308404,13.30,                      
BEIS,The Insolvency Service,03/10/2017,Travel and Subsistence,CRIMINAL ENFORCEMENT                                                                                ,Staff Payment,BA0000308404,13.37,                      
BEIS,The Insolvency Service,03/10/2017,Travel and Subsistence,CRIMINAL ENFORCEMENT                                                                                ,Staff Payment,BA0000308404,88.20,                      
BEIS,The Insolvency Service,03/10/2017,Travel and Subsistence,CRIMINAL ENFORCEMENT                                                                                ,Staff Payment,BA0000308404,88.65,                      
BEIS,The Insolvency Service,03/10/2017,Travel and Subsistence,CRIMINAL ENFORCEMENT                                                                                ,Staff Payment,BA0000308404,108.90,                      
BEIS,The Insolvency Service,03/10/2017,Travel and Subsistence,CRIMINAL ENFORCEMENT                                                                                ,Staff Payment,BA0000308404,3.00,                      
BEIS,The Insolvency Service,03/10/2017,Travel and Subsistence,CRIMINAL ENFORCEMENT                                                                                ,Staff Payment,BA0000308404,4.00,                      
BEIS,The Insolvency Service,03/10/2017,Travel and Subsistence,CRIMINAL ENFORCEMENT                                                                                ,Staff Payment,BA0000308404,4.50,                      
BEIS,The Insolvency Service,03/10/2017,Travel and Subsistence,CRIMINAL ENFORCEMENT                                                                                ,Staff Payment,BA0000308404,4.95,                      
BEIS,The Insolvency Service,03/10/2017,Travel and Subsistence,CRIMINAL ENFORCEMENT                                                                                ,Staff Payment,BA0000308404,16.50,                      
BEIS,The Insolvency Service,03/10/2017,Travel and Subsistence,CRIMINAL ENFORCEMENT                                                                                ,Staff Payment,BA0000308404,76.05,                      
BEIS,The Insolvency Service,03/10/2017,Travel and Subsistence,CRIMINAL ENFORCEMENT                                                                                ,Staff Payment,BA0000308404,5.00,                      
BEIS,The Insolvency Service,03/10/2017,Travel and Subsistence,CRIMINAL ENFORCEMENT                                                                                ,Staff Payment,BA0000308404,12.30,                      
BEIS,The Insolvency Service,03/10/2017,Travel and Subsistence,CRIMINAL ENFORCEMENT                                                                                ,Staff Payment,BA0000308404,67.50,                      
BEIS,The Insolvency Service,03/10/2017,Travel and Subsistence,CRIMINAL ENFORCEMENT                                                                                ,Staff Payment,BA0000308404,1.80,                      
BEIS,The Insolvency Service,03/10/2017,Travel and Subsistence,CRIMINAL ENFORCEMENT                                                                                ,Staff Payment,BA0000308404,3.00,                      
BEIS,The Insolvency Service,03/10/2017,Travel and Subsistence,CRIMINAL ENFORCEMENT                                                                                ,Staff Payment,BA0000308404,4.00,                      
BEIS,The Insolvency Service,03/10/2017,Travel and Subsistence,CRIMINAL ENFORCEMENT                                                                                ,Staff Payment,BA0000308404,4.40,                      
BEIS,The Insolvency Service,03/10/2017,Travel and Subsistence,CRIMINAL ENFORCEMENT                                                                                ,Staff Payment,BA0000308404,4.99,                      
BEIS,The Insolvency Service,03/10/2017,Travel and Subsistence,CRIMINAL ENFORCEMENT                                                                                ,Staff Payment,BA0000308404,11.25,                      
BEIS,The Insolvency Service,03/10/2017,Travel and Subsistence,CRIMINAL ENFORCEMENT                                                                                ,Staff Payment,BA0000308404,12.60,                      
BEIS,The Insolvency Service,03/10/2017,Travel and Subsistence,CRIMINAL ENFORCEMENT                                                                                ,Staff Payment,BA0000308404,14.95,                      
BEIS,The Insolvency Service,03/10/2017,Travel and Subsistence,CRIMINAL ENFORCEMENT                                                                                ,Staff Payment,BA0000308404,41.40,                      
BEIS,The Insolvency Service,03/10/2017,Travel and Subsistence,CRIMINAL ENFORCEMENT                                                                                ,Staff Payment,BA0000308404,46.00,                      
BEIS,The Insolvency Service,03/10/2017,Travel and Subsistence,CRIMINAL ENFORCEMENT                                                                                ,Staff Payment,BA0000308404,4.85,                      
BEIS,The Insolvency Service,03/10/2017,Travel and Subsistence,CRIMINAL ENFORCEMENT                                                                                ,Staff Payment,BA0000308404,5.00,                      
BEIS,The Insolvency Service,03/10/2017,Travel and Subsistence,CRIMINAL ENFORCEMENT                                                                                ,Staff Payment,BA0000308404,5.90,                      
BEIS,The Insolvency Service,03/10/2017,Travel and Subsistence,CRIMINAL ENFORCEMENT                                                                                ,Staff Payment,BA0000308404,6.00,                      
BEIS,The Insolvency Service,03/10/2017,Travel and Subsistence,CRIMINAL ENFORCEMENT                                                                                ,Staff Payment,BA0000308404,8.10,                      
BEIS,The Insolvency Service,03/10/2017,Travel and Subsistence,CRIMINAL ENFORCEMENT                                                                                ,Staff Payment,BA0000308404,9.68,                      
BEIS,The Insolvency Service,03/10/2017,Travel and Subsistence,CRIMINAL ENFORCEMENT                                                                                ,Staff Payment,BA0000308404,10.00,                      
BEIS,The Insolvency Service,03/10/2017,Travel and Subsistence,CRIMINAL ENFORCEMENT                                                                                ,Staff Payment,BA0000308404,12.00,                      
BEIS,The Insolvency Service,03/10/2017,Travel and Subsistence,CRIMINAL ENFORCEMENT                                                                                ,Staff Payment,BA0000308404,12.30,                      
BEIS,The Insolvency Service,03/10/2017,Travel and Subsistence,CRIMINAL ENFORCEMENT                                                                                ,Staff Payment,BA0000308404,25.65,                      
BEIS,The Insolvency Service,03/10/2017,Travel and Subsistence,CRIMINAL ENFORCEMENT                                                                                ,Staff Payment,BA0000308404,30.15,                      
BEIS,The Insolvency Service,03/10/2017,Travel and Subsistence,CRIMINAL ENFORCEMENT                                                                                ,Staff Payment,BA0000308404,86.85,                      
BEIS,The Insolvency Service,03/10/2017,Travel and Subsistence,CRIMINAL ENFORCEMENT                                                                                ,Staff Payment,BA0000308404,99.45,                      
BEIS,The Insolvency Service,03/10/2017,Travel and Subsistence,CRIMINAL ENFORCEMENT                                                                                ,Staff Payment,BA0000308404,100.35,                      
BEIS,The Insolvency Service,03/10/2017,Travel and Subsistence,FINANCE AND COMMERCIAL                                                                              ,Staff Payment,BA0000308404,2.25,                      
BEIS,The Insolvency Service,03/10/2017,Travel and Subsistence,FINANCE AND COMMERCIAL                                                                              ,Staff Payment,BA0000308404,2.30,                      
BEIS,The Insolvency Service,03/10/2017,Travel and Subsistence,FINANCE AND COMMERCIAL                                                                              ,Staff Payment,BA0000308404,3.35,                      
BEIS,The Insolvency Service,03/10/2017,Travel and Subsistence,FINANCE AND COMMERCIAL                                                                              ,Staff Payment,BA0000308404,3.55,                      
BEIS,The Insolvency Service,03/10/2017,Travel and Subsistence,FINANCE AND COMMERCIAL                                                                              ,Staff Payment,BA0000308404,3.64,                      
BEIS,The Insolvency Service,03/10/2017,Travel and Subsistence,FINANCE AND COMMERCIAL                                                                              ,Staff Payment,BA0000308404,4.62,                      
BEIS,The Insolvency Service,03/10/2017,Travel and Subsistence,FINANCE AND COMMERCIAL                                                                              ,Staff Payment,BA0000308404,8.00,                      
BEIS,The Insolvency Service,03/10/2017,Travel and Subsistence,FINANCE AND COMMERCIAL                                                                              ,Staff Payment,BA0000308404,10.20,                      
BEIS,The Insolvency Service,03/10/2017,Travel and Subsistence,FINANCE AND COMMERCIAL                                                                              ,Staff Payment,BA0000308404,11.25,                      
BEIS,The Insolvency Service,03/10/2017,Travel and Subsistence,FINANCE AND COMMERCIAL                                                                              ,Staff Payment,BA0000308404,12.00,                      
BEIS,The Insolvency Service,03/10/2017,Travel and Subsistence,FINANCE AND COMMERCIAL                                                                              ,Staff Payment,BA0000308404,24.00,                      
BEIS,The Insolvency Service,03/10/2017,Travel and Subsistence,FINANCE AND COMMERCIAL                                                                              ,Staff Payment,BA0000308404,45.00,                      
BEIS,The Insolvency Service,03/10/2017,Travel and Subsistence,FINANCE AND COMMERCIAL,Staff Payment,BA0000308404,6.00,
BEIS,The Insolvency Service,03/10/2017,Travel and Subsistence,FINANCE AND COMMERCIAL,Staff Payment,BA0000308404,6.30,
BEIS,The Insolvency Service,03/10/2017,Travel and Subsistence,FINANCE AND COMMERCIAL                                                                              ,Staff Payment,BA0000308404,5.00,                      
BEIS,The Insolvency Service,03/10/2017,Travel and Subsistence,OFFICIAL RECEIVER SERVICES                                                                          ,Staff Payment,BA0000308404,10.80,
BEIS,The Insolvency Service,03/10/2017,Travel and Subsistence,OFFICIAL RECEIVER SERVICES                                                                          ,Staff Payment,BA0000308404,24.30,
BEIS,The Insolvency Service,03/10/2017,Travel and Subsistence,OFFICIAL RECEIVER SERVICES                                                                          ,Staff Payment,BA0000308404,3.89,
BEIS,The Insolvency Service,03/10/2017,Travel and Subsistence,OFFICIAL RECEIVER SERVICES                                                                          ,Staff Payment,BA0000308404,7.20,
BEIS,The Insolvency Service,03/10/2017,Travel and Subsistence,OFFICIAL RECEIVER SERVICES                                                                          ,Staff Payment,BA0000308404,12.00,
BEIS,The Insolvency Service,03/10/2017,Travel and Subsistence,OFFICIAL RECEIVER SERVICES                                                                          ,Staff Payment,BA0000308404,65.00,
BEIS,The Insolvency Service,03/10/2017,Travel and Subsistence,OFFICIAL RECEIVER SERVICES                                                                          ,Staff Payment,BA0000308404,102.15,
BEIS,The Insolvency Service,03/10/2017,Travel and Subsistence,OFFICIAL RECEIVER SERVICES                                                                          ,Staff Payment,BA0000308404,3.00,                      
BEIS,The Insolvency Service,03/10/2017,Travel and Subsistence,OFFICIAL RECEIVER SERVICES                                                                          ,Staff Payment,BA0000308404,30.00,                      
BEIS,The Insolvency Service,03/10/2017,Travel and Subsistence,OFFICIAL RECEIVER SERVICES                                                                          ,Staff Payment,BA0000308404,5.75,
BEIS,The Insolvency Service,03/10/2017,Travel and Subsistence,OFFICIAL RECEIVER SERVICES                                                                          ,Staff Payment,BA0000308404,5.76,
BEIS,The Insolvency Service,03/10/2017,Travel and Subsistence,OFFICIAL RECEIVER SERVICES                                                                          ,Staff Payment,BA0000308404,7.25,
BEIS,The Insolvency Service,03/10/2017,Travel and Subsistence,OFFICIAL RECEIVER SERVICES                                                                          ,Staff Payment,BA0000308404,49.00,
BEIS,The Insolvency Service,03/10/2017,Travel and Subsistence,PEOPLE & CAPABILITY                                                                                 ,Staff Payment,BA0000308404,5.00,
BEIS,The Insolvency Service,03/10/2017,Travel and Subsistence,PEOPLE & CAPABILITY                                                                                 ,Staff Payment,BA0000308404,6.00,
BEIS,The Insolvency Service,03/10/2017,Travel and Subsistence,PEOPLE & CAPABILITY                                                                                 ,Staff Payment,BA0000308404,5.00,
BEIS,The Insolvency Service,03/10/2017,Travel and Subsistence,PEOPLE & CAPABILITY                                                                                 ,Staff Payment,BA0000308404,14.90,
BEIS,The Insolvency Service,03/10/2017,Travel and Subsistence,PEOPLE & CAPABILITY                                                                                 ,Staff Payment,BA0000308404,5.00,
BEIS,The Insolvency Service,03/10/2017,Travel and Subsistence,PEOPLE & CAPABILITY                                                                                 ,Staff Payment,BA0000308404,15.00,
BEIS,The Insolvency Service,04/10/2017,Investigation and Enforcement Costs,CRIMINAL ENFORCEMENT                                                                                ,Harris Cuffaro and Nichols solicitors                       ,BA0000308427,1448.10,                      
BEIS,The Insolvency Service,04/10/2017,Employee Related Costs,PEOPLE & CAPABILITY                                                                                 ,HMRC,BA0000308441,1325.00,888848141
BEIS,The Insolvency Service,04/10/2017,Accounting and Banking,FINANCE AND COMMERCIAL,KDS UK LTD,BA0000308429,2786.40,776463881
BEIS,The Insolvency Service,04/10/2017,Agency Workers,INFORMATION TECHNOLOGY                                                                              ,JUMAR SOLUTIONS LTD                                         ,BA0000308433,7800.00,                      
BEIS,The Insolvency Service,04/10/2017,Employee Related Costs,FINANCE AND COMMERCIAL                                                                              ,Staff Payment,BA0000308440,33.00,                      
BEIS,The Insolvency Service,04/10/2017,Insolvency Case Related Costs,INVESTIGATIONS & ENFORCEMENT                                                                        ,Staff Payment,BA0000308440,7.00,
BEIS,The Insolvency Service,04/10/2017,Insolvency Case Related Costs,OFFICIAL RECEIVER SERVICES                                                                          ,COMPANIES HOUSE,BA0000308437,4.00,GD255
BEIS,The Insolvency Service,04/10/2017,Insolvency Case Related Costs,OFFICIAL RECEIVER SERVICES                                                                          ,HPI LTD,BA0000308430,8.72,942407139
BEIS,The Insolvency Service,04/10/2017,Insolvency Case Related Costs,OFFICIAL RECEIVER SERVICES                                                                          ,HPI LTD,BA0000308432,7.25,942407139
BEIS,The Insolvency Service,04/10/2017,Insolvency Case Related Costs,OFFICIAL RECEIVER SERVICES                                                                          ,HPI LTD,BA0000308435,3.73,942407139
BEIS,The Insolvency Service,04/10/2017,Insolvency Case Related Costs,OFFICIAL RECEIVER SERVICES                                                                          ,ROYAL MAIL (REDIRECTION)                                    ,BA0000308426,11840.00,
BEIS,The Insolvency Service,04/10/2017,Investigation and Enforcement Costs,CUSTOMER AND COMMUNICATIONS                                                                         ,GORKANA GROUP LTD                                           ,BA0000308434,766.80,757158012
BEIS,The Insolvency Service,04/10/2017,Investigation and Enforcement Costs,CUSTOMER AND COMMUNICATIONS                                                                         ,GOVDELIVERY INC                                             ,BA0000308424,655.00,8260026
BEIS,The Insolvency Service,04/10/2017,Investigation and Enforcement Costs,INVESTIGATIONS & ENFORCEMENT                                                                        ,BOND DICKINSON                                              ,BA0000308438,1306.60,123392627
BEIS,The Insolvency Service,04/10/2017,Legal Costs,P&C - People Relations                                                                              ,GOVERNMENT LEGAL DEPARTMENT                                 ,BA0000308416,2461.80,888823066
BEIS,The Insolvency Service,04/10/2017,Legal Costs,P&C - People Relations                                                                              ,GOVERNMENT LEGAL DEPARTMENT                                 ,BA0000308423,148.80,888823066
BEIS,The Insolvency Service,04/10/2017,Office Supplies and Services,INFORMATION TECHNOLOGY                                                                              ,BANNER BUSINESS SERVICES LTD                                ,BA0000308439,225.30,731860439
BEIS,The Insolvency Service,04/10/2017,Office Supplies and Services,INVESTIGATIONS & ENFORCEMENT                                                                        ,BANNER BUSINESS SERVICES LTD                                ,BA0000308439,18.41,731860439
BEIS,The Insolvency Service,04/10/2017,Office Supplies and Services,OFFICIAL RECEIVER SERVICES                                                                          ,BANNER BUSINESS SERVICES LTD                                ,BA0000308439,77.51,731860439
BEIS,The Insolvency Service,04/10/2017,Office Supplies and Services,OFFICIAL RECEIVER SERVICES                                                                          ,BANNER BUSINESS SERVICES LTD                                ,BA0000308439,448.84,731860439
BEIS,The Insolvency Service,04/10/2017,Postage,BUSINESS SERVICES DIRECTORATE                                                                       ,NEOPOST LTD - FRANKING TOP UPS,BA0000308421,1000.00,
BEIS,The Insolvency Service,04/10/2017,Postage,FINANCE AND COMMERCIAL                                                                              ,ROYAL MAIL GROUP LTD - RESPONSE SERVICES                ,BA0000308422,1073.25,243170002
BEIS,The Insolvency Service,04/10/2017,Postage,FINANCE AND COMMERCIAL                                                                              ,ROYAL MAIL GROUP LTD - RESPONSE SERVICES            ,BA0000308420,52.53,243170002
BEIS,The Insolvency Service,04/10/2017,Postage,FINANCE AND COMMERCIAL                                                                              ,ROYAL MAIL GROUP LTD - RESPONSE SERVICES                  ,BA0000308428,787.00,243170002
BEIS,The Insolvency Service,04/10/2017,Postage,OFFICIAL RECEIVER SERVICES                                                                          ,NEOPOST LTD - FRANKING TOP UPS,BA0000308421,50.00,
BEIS,The Insolvency Service,04/10/2017,Postage,OFFICIAL RECEIVER SERVICES                                                                          ,NEOPOST LTD - FRANKING TOP UPS,BA0000308421,200.00,
BEIS,The Insolvency Service,04/10/2017,Postage,OFFICIAL RECEIVER SERVICES                                                                          ,NEOPOST LTD - FRANKING TOP UPS,BA0000308421,400.00,
BEIS,The Insolvency Service,04/10/2017,Postage,OFFICIAL RECEIVER SERVICES                                                                          ,NEOPOST LTD - FRANKING TOP UPS,BA0000308421,500.00,
BEIS,The Insolvency Service,04/10/2017,Postage,OFFICIAL RECEIVER SERVICES                                                                          ,NEOPOST LTD - FRANKING TOP UPS,BA0000308421,500.00,
BEIS,The Insolvency Service,04/10/2017,Postage,OFFICIAL RECEIVER SERVICES                                                                          ,NEOPOST LTD - FRANKING TOP UPS,BA0000308421,500.00,
BEIS,The Insolvency Service,04/10/2017,Postage,OFFICIAL RECEIVER SERVICES                                                                          ,NEOPOST LTD - FRANKING TOP UPS,BA0000308421,1000.00,
BEIS,The Insolvency Service,04/10/2017,Telecoms,INFORMATION TECHNOLOGY                                                                              ,KCOM GROUP PLC,BA0000308431,72.00,647235137
BEIS,The Insolvency Service,04/10/2017,Training Costs,FINANCE AND COMMERCIAL,BPP PROFESSIONAL EDUCATION,BA0000308436,599.00,466451629
BEIS,The Insolvency Service,04/10/2017,Training Costs,PEOPLE & CAPABILITY                                                                                 ,"Premier People Solutions Ltd, T/A Premier Partnership       ",BA0000308425,330.00,                      
BEIS,The Insolvency Service,04/10/2017,Travel and Subsistence,BUSINESS SERVICES DIRECTORATE                                                                       ,Staff Payment,BA0000308440,4.69,
BEIS,The Insolvency Service,04/10/2017,Travel and Subsistence,BUSINESS SERVICES DIRECTORATE                                                                       ,Staff Payment,BA0000308440,5.00,
BEIS,The Insolvency Service,04/10/2017,Travel and Subsistence,BUSINESS SERVICES DIRECTORATE                                                                       ,Staff Payment,BA0000308440,15.00,
BEIS,The Insolvency Service,04/10/2017,Travel and Subsistence,BUSINESS SERVICES DIRECTORATE                                                                       ,Staff Payment,BA0000308440,7.00,
BEIS,The Insolvency Service,04/10/2017,Travel and Subsistence,BUSINESS SERVICES DIRECTORATE                                                                       ,Staff Payment,BA0000308440,8.00,
BEIS,The Insolvency Service,04/10/2017,Travel and Subsistence,BUSINESS SERVICES DIRECTORATE                                                                       ,Staff Payment,BA0000308440,1.67,
BEIS,The Insolvency Service,04/10/2017,Travel and Subsistence,BUSINESS SERVICES DIRECTORATE                                                                       ,Staff Payment,BA0000308440,5.00,
BEIS,The Insolvency Service,04/10/2017,Travel and Subsistence,BUSINESS SERVICES DIRECTORATE                                                                       ,Staff Payment,BA0000308440,8.98,
BEIS,The Insolvency Service,04/10/2017,Travel and Subsistence,BUSINESS SERVICES DIRECTORATE                                                                       ,Staff Payment,BA0000308440,17.50,
BEIS,The Insolvency Service,04/10/2017,Travel and Subsistence,BUSINESS SERVICES DIRECTORATE                                                                       ,Staff Payment,BA0000308440,33.75,
BEIS,The Insolvency Service,04/10/2017,Travel and Subsistence,BUSINESS SERVICES DIRECTORATE                                                                       ,Staff Payment,BA0000308440,39.60,
BEIS,The Insolvency Service,04/10/2017,Travel and Subsistence,BUSINESS SERVICES DIRECTORATE                                                                       ,Staff Payment,BA0000308440,57.60,
BEIS,The Insolvency Service,04/10/2017,Travel and Subsistence,BUSINESS SERVICES DIRECTORATE                                                                       ,Staff Payment,BA0000308440,5.00,
BEIS,The Insolvency Service,04/10/2017,Travel and Subsistence,BUSINESS SERVICES DIRECTORATE                                                                       ,Staff Payment,BA0000308440,8.10,
BEIS,The Insolvency Service,04/10/2017,Travel and Subsistence,BUSINESS SERVICES DIRECTORATE                                                                       ,Staff Payment,BA0000308440,14.00,
BEIS,The Insolvency Service,04/10/2017,Travel and Subsistence,CRIMINAL ENFORCEMENT                                                                                ,Staff Payment,BA0000308440,5.00,                      
BEIS,The Insolvency Service,04/10/2017,Travel and Subsistence,CRIMINAL ENFORCEMENT                                                                                ,Staff Payment,BA0000308440,11.00,                      
BEIS,The Insolvency Service,04/10/2017,Travel and Subsistence,CRIMINAL ENFORCEMENT                                                                                ,Staff Payment,BA0000308440,62.55,                      
BEIS,The Insolvency Service,04/10/2017,Travel and Subsistence,CRIMINAL ENFORCEMENT                                                                                ,Staff Payment,BA0000308440,74.70,                      
BEIS,The Insolvency Service,04/10/2017,Travel and Subsistence,CRIMINAL ENFORCEMENT                                                                                ,Staff Payment,BA0000308440,5.00,                      
BEIS,The Insolvency Service,04/10/2017,Travel and Subsistence,CRIMINAL ENFORCEMENT                                                                                ,Staff Payment,BA0000308440,6.00,                      
BEIS,The Insolvency Service,04/10/2017,Travel and Subsistence,CRIMINAL ENFORCEMENT                                                                                ,Staff Payment,BA0000308440,56.25,                      
BEIS,The Insolvency Service,04/10/2017,Travel and Subsistence,CRIMINAL ENFORCEMENT                                                                                ,Staff Payment,BA0000308440,5.40,                      
BEIS,The Insolvency Service,04/10/2017,Travel and Subsistence,CRIMINAL ENFORCEMENT                                                                                ,Staff Payment,BA0000308440,6.70,                      
BEIS,The Insolvency Service,04/10/2017,Travel and Subsistence,CRIMINAL ENFORCEMENT                                                                                ,Staff Payment,BA0000308440,19.00,                      
BEIS,The Insolvency Service,04/10/2017,Travel and Subsistence,CRIMINAL ENFORCEMENT                                                                                ,Staff Payment,BA0000308440,28.80,                      
BEIS,The Insolvency Service,04/10/2017,Travel and Subsistence,CRIMINAL ENFORCEMENT                                                                                ,Staff Payment,BA0000308440,48.60,                      
BEIS,The Insolvency Service,04/10/2017,Travel and Subsistence,CRIMINAL ENFORCEMENT                                                                                ,Staff Payment,BA0000308440,45.90,                      
BEIS,The Insolvency Service,04/10/2017,Travel and Subsistence,FINANCE AND COMMERCIAL,Staff Payment,BA0000308440,4.80,                      
BEIS,The Insolvency Service,04/10/2017,Travel and Subsistence,FINANCE AND COMMERCIAL,Staff Payment,BA0000308440,5.00,                      
BEIS,The Insolvency Service,04/10/2017,Travel and Subsistence,FINANCE AND COMMERCIAL,Staff Payment,BA0000308440,3.00,                      
BEIS,The Insolvency Service,04/10/2017,Travel and Subsistence,FINANCE AND COMMERCIAL,Staff Payment,BA0000308440,3.39,                      
BEIS,The Insolvency Service,04/10/2017,Travel and Subsistence,FINANCE AND COMMERCIAL,Staff Payment,BA0000308440,29.60,                      
BEIS,The Insolvency Service,04/10/2017,Travel and Subsistence,INFORMATION TECHNOLOGY                                                                              ,Staff Payment,BA0000308440,7.30,
BEIS,The Insolvency Service,04/10/2017,Travel and Subsistence,INFORMATION TECHNOLOGY                                                                              ,Staff Payment,BA0000308440,5.00,                      
BEIS,The Insolvency Service,04/10/2017,Travel and Subsistence,INFORMATION TECHNOLOGY                                                                              ,Staff Payment,BA0000308440,4.95,                      
BEIS,The Insolvency Service,04/10/2017,Travel and Subsistence,INFORMATION TECHNOLOGY                                                                              ,Staff Payment,BA0000308440,5.00,                      
BEIS,The Insolvency Service,04/10/2017,Travel and Subsistence,INVESTIGATIONS & ENFORCEMENT                                                                        ,Staff Payment,BA0000308440,4.98,
BEIS,The Insolvency Service,04/10/2017,Travel and Subsistence,INVESTIGATIONS & ENFORCEMENT                                                                        ,Staff Payment,BA0000308440,5.00,
BEIS,The Insolvency Service,04/10/2017,Travel and Subsistence,INVESTIGATIONS & ENFORCEMENT                                                                        ,Staff Payment,BA0000308440,5.00,
BEIS,The Insolvency Service,04/10/2017,Travel and Subsistence,INVESTIGATIONS & ENFORCEMENT                                                                        ,Staff Payment,BA0000308440,6.10,
BEIS,The Insolvency Service,04/10/2017,Travel and Subsistence,INVESTIGATIONS & ENFORCEMENT                                                                        ,Staff Payment,BA0000308440,6.60,
BEIS,The Insolvency Service,04/10/2017,Travel and Subsistence,INVESTIGATIONS & ENFORCEMENT                                                                        ,Staff Payment,BA0000308440,3.70,
BEIS,The Insolvency Service,04/10/2017,Travel and Subsistence,INVESTIGATIONS & ENFORCEMENT                                                                        ,Staff Payment,BA0000308440,5.00,
BEIS,The Insolvency Service,04/10/2017,Travel and Subsistence,INVESTIGATIONS & ENFORCEMENT                                                                        ,Staff Payment,BA0000308440,15.00,
BEIS,The Insolvency Service,04/10/2017,Travel and Subsistence,INVESTIGATIONS & ENFORCEMENT                                                                        ,Staff Payment,BA0000308440,38.00,
BEIS,The Insolvency Service,04/10/2017,Travel and Subsistence,INVESTIGATIONS & ENFORCEMENT                                                                        ,Staff Payment,BA0000308440,38.35,
BEIS,The Insolvency Service,04/10/2017,Travel and Subsistence,INVESTIGATIONS & ENFORCEMENT                                                                        ,Staff Payment,BA0000308440,4.10,
BEIS,The Insolvency Service,04/10/2017,Travel and Subsistence,INVESTIGATIONS & ENFORCEMENT                                                                        ,Staff Payment,BA0000308440,5.40,
BEIS,The Insolvency Service,04/10/2017,Travel and Subsistence,INVESTIGATIONS & ENFORCEMENT                                                                        ,Staff Payment,BA0000308440,5.00,
BEIS,The Insolvency Service,04/10/2017,Travel and Subsistence,INVESTIGATIONS & ENFORCEMENT                                                                        ,Staff Payment,BA0000308440,9.00,
BEIS,The Insolvency Service,04/10/2017,Travel and Subsistence,INVESTIGATIONS & ENFORCEMENT                                                                        ,Staff Payment,BA0000308440,13.50,
BEIS,The Insolvency Service,04/10/2017,Travel and Subsistence,INVESTIGATIONS & ENFORCEMENT                                                                        ,Staff Payment,BA0000308440,7.61,
BEIS,The Insolvency Service,04/10/2017,Travel and Subsistence,INVESTIGATIONS & ENFORCEMENT                                                                        ,Staff Payment,BA0000308440,7.92,
BEIS,The Insolvency Service,04/10/2017,Travel and Subsistence,INVESTIGATIONS & ENFORCEMENT                                                                        ,Staff Payment,BA0000308440,4.80,
BEIS,The Insolvency Service,04/10/2017,Travel and Subsistence,OFFICIAL RECEIVER SERVICES                                                                          ,Staff Payment,BA0000308440,5.00,
BEIS,The Insolvency Service,04/10/2017,Travel and Subsistence,OFFICIAL RECEIVER SERVICES                                                                          ,Staff Payment,BA0000308440,6.09,
BEIS,The Insolvency Service,04/10/2017,Travel and Subsistence,OFFICIAL RECEIVER SERVICES                                                                          ,Staff Payment,BA0000308440,5.85,
BEIS,The Insolvency Service,04/10/2017,Travel and Subsistence,OFFICIAL RECEIVER SERVICES                                                                          ,Staff Payment,BA0000308440,5.00,                      
BEIS,The Insolvency Service,04/10/2017,Travel and Subsistence,OFFICIAL RECEIVER SERVICES                                                                          ,Staff Payment,BA0000308440,15.00,                      
BEIS,The Insolvency Service,04/10/2017,Travel and Subsistence,OFFICIAL RECEIVER SERVICES                                                                          ,Staff Payment,BA0000308440,4.95,
BEIS,The Insolvency Service,04/10/2017,Travel and Subsistence,OFFICIAL RECEIVER SERVICES                                                                          ,Staff Payment,BA0000308440,6.09,
BEIS,The Insolvency Service,04/10/2017,Travel and Subsistence,OFFICIAL RECEIVER SERVICES                                                                          ,Staff Payment,BA0000308440,16.31,
BEIS,The Insolvency Service,04/10/2017,Travel and Subsistence,OFFICIAL RECEIVER SERVICES                                                                          ,Staff Payment,BA0000308440,3.15,
BEIS,The Insolvency Service,04/10/2017,Travel and Subsistence,OFFICIAL RECEIVER SERVICES                                                                          ,Staff Payment,BA0000308440,5.00,                      
BEIS,The Insolvency Service,04/10/2017,Travel and Subsistence,OFFICIAL RECEIVER SERVICES                                                                          ,Staff Payment,BA0000308440,12.00,                      
BEIS,The Insolvency Service,04/10/2017,Travel and Subsistence,OFFICIAL RECEIVER SERVICES                                                                          ,Staff Payment,BA0000308440,3.00,                      
BEIS,The Insolvency Service,04/10/2017,Travel and Subsistence,OFFICIAL RECEIVER SERVICES                                                                          ,Staff Payment,BA0000308440,53.00,                      
BEIS,The Insolvency Service,04/10/2017,Travel and Subsistence,PEOPLE & CAPABILITY                                                                                 ,Staff Payment,BA0000308440,5.00,                      
BEIS,The Insolvency Service,04/10/2017,Travel and Subsistence,PEOPLE & CAPABILITY                                                                                 ,Staff Payment,BA0000308440,10.86,                      
BEIS,The Insolvency Service,04/10/2017,Travel and Subsistence,PEOPLE & CAPABILITY                                                                                 ,Staff Payment,BA0000308440,12.00,                      
BEIS,The Insolvency Service,04/10/2017,Travel and Subsistence,PEOPLE & CAPABILITY                                                                                 ,Staff Payment,BA0000308440,14.45,                      
BEIS,The Insolvency Service,04/10/2017,Travel and Subsistence,PEOPLE & CAPABILITY                                                                                 ,Staff Payment,BA0000308440,15.00,                      
BEIS,The Insolvency Service,04/10/2017,Travel and Subsistence,PEOPLE & CAPABILITY                                                                                 ,Staff Payment,BA0000308440,37.53,                      
BEIS,The Insolvency Service,04/10/2017,Travel and Subsistence,PEOPLE & CAPABILITY                                                                                 ,Staff Payment,BA0000308440,38.61,                      
BEIS,The Insolvency Service,04/10/2017,Travel and Subsistence,PEOPLE & CAPABILITY                                                                                 ,Staff Payment,BA0000308440,5.00,
BEIS,The Insolvency Service,04/10/2017,Travel and Subsistence,PEOPLE & CAPABILITY                                                                                 ,Staff Payment,BA0000308440,25.65,
BEIS,The Insolvency Service,05/10/2017,Agency Workers,FINANCE AND COMMERCIAL,BROOK STREET (UK) LTD,BA0000308457,22777.19,
BEIS,The Insolvency Service,05/10/2017,Agency Workers,INFORMATION TECHNOLOGY                                                                              ,CONCEPT INFORMATION TECHNOLOGY LTD                          ,BA0000308452,3060.00,776147892
BEIS,The Insolvency Service,05/10/2017,Agency Workers,INFORMATION TECHNOLOGY                                                                              ,CONCEPT INFORMATION TECHNOLOGY LTD                          ,BA0000308461,1875.00,776147892
BEIS,The Insolvency Service,05/10/2017,Agency Workers,INFORMATION TECHNOLOGY                                                                              ,CONCEPT INFORMATION TECHNOLOGY LTD                          ,BA0000308463,1224.00,776147892
BEIS,The Insolvency Service,05/10/2017,Computer and IT Systems,INFORMATION TECHNOLOGY                                                                              ,ATOS IT SERVICES UK LTD,BA0000308455,5940.05,
BEIS,The Insolvency Service,05/10/2017,Computer and IT Systems,INFORMATION TECHNOLOGY                                                                              ,ATOS IT SERVICES UK LTD,BA0000308456,28043.14,
BEIS,The Insolvency Service,05/10/2017,Computer and IT Systems,INFORMATION TECHNOLOGY                                                                              ,EXPERIAN QAS LTD,BA0000308447,2216.65,887133593
BEIS,The Insolvency Service,05/10/2017,Computer and IT Systems,INFORMATION TECHNOLOGY                                                                              ,EXPERIAN QAS LTD,BA0000308448,9783.60,887133593
BEIS,The Insolvency Service,05/10/2017,Computer and IT Systems,INFORMATION TECHNOLOGY                                                                              ,UKCLOUD LTD                                                 ,BA0000308446,5372.17,122134958
BEIS,The Insolvency Service,05/10/2017,Employee Related Costs,P&C - People Relations                                                                              ,RIGHT CORECARE Ltd                                          ,BA0000308451,551.65,                      
BEIS,The Insolvency Service,05/10/2017,Insolvency Case Related Costs,BUSINESS SERVICES DIRECTORATE                                                                       ,COMPANIES HOUSE,BA0000308454,17.00,GD255
BEIS,The Insolvency Service,05/10/2017,Insolvency Case Related Costs,OFFICIAL RECEIVER SERVICES                                                                          ,COMPANIES HOUSE,BA0000308464,4.00,GD255
BEIS,The Insolvency Service,05/10/2017,Insolvency Case Related Costs,OFFICIAL RECEIVER SERVICES                                                                          ,FRANK G. BOWEN LTD,BA0000308458,102.00,238504366
BEIS,The Insolvency Service,05/10/2017,Insolvency Case Related Costs,OFFICIAL RECEIVER SERVICES                                                                          ,FRANK G. BOWEN LTD,BA0000308459,102.00,238504366
BEIS,The Insolvency Service,05/10/2017,Insolvency Case Related Costs,OFFICIAL RECEIVER SERVICES                                                                          ,FRANK G. BOWEN LTD,BA0000308460,102.00,238504366
BEIS,The Insolvency Service,05/10/2017,Insolvency Case Related Costs,OFFICIAL RECEIVER SERVICES                                                                          ,FRANK G. BOWEN LTD,BA0000308462,102.00,238504366
BEIS,The Insolvency Service,05/10/2017,Insolvency Case Related Costs,OFFICIAL RECEIVER SERVICES                                                                          ,FRANK G. BOWEN LTD,BA0000308465,102.00,238504366
BEIS,The Insolvency Service,05/10/2017,Insolvency Case Related Costs,OFFICIAL RECEIVER SERVICES                                                                          ,FRANK G. BOWEN LTD,BA0000308466,210.00,238504366
BEIS,The Insolvency Service,05/10/2017,Insolvency Case Related Costs,OFFICIAL RECEIVER SERVICES                                                                          ,FRANK G. BOWEN LTD,BA0000308468,102.00,238504366
BEIS,The Insolvency Service,05/10/2017,Insolvency Case Related Costs,OFFICIAL RECEIVER SERVICES                                                                          ,HPI LTD,BA0000308450,43.42,942407139
BEIS,The Insolvency Service,05/10/2017,Office Supplies and Services,CUSTOMER AND COMMUNICATIONS                                                                         ,Staff Payment,BA0000308453,4.15,                      
BEIS,The Insolvency Service,05/10/2017,Office Supplies and Services,CUSTOMER AND COMMUNICATIONS                                                                         ,Staff Payment,BA0000308453,195.60,                      
BEIS,The Insolvency Service,05/10/2017,Office Supplies and Services,OFFICIAL RECEIVER SERVICES                                                                          ,Staff Payment,BA0000308453,6.99,                      
BEIS,The Insolvency Service,05/10/2017,Postage,FINANCE AND COMMERCIAL                                                                              ,TNT UK LTD,BA0000308467,75.01,354715057
BEIS,The Insolvency Service,05/10/2017,Telecoms,INVESTIGATIONS & ENFORCEMENT                                                                        ,Staff Payment,BA0000308453,218.49,
BEIS,The Insolvency Service,05/10/2017,Training Costs,INVESTIGATIONS & ENFORCEMENT                                                                        ,GUIDANCE SOFTWARE,BA0000308449,4235.00,793275689
BEIS,The Insolvency Service,05/10/2017,Travel and Subsistence,CHIEF EXECUTIVE DIVISION                                                                            ,Staff Payment,BA0000308453,3.60,
BEIS,The Insolvency Service,05/10/2017,Travel and Subsistence,CHIEF EXECUTIVE DIVISION                                                                            ,Staff Payment,BA0000308453,5.00,
BEIS,The Insolvency Service,05/10/2017,Travel and Subsistence,CHIEF EXECUTIVE DIVISION                                                                            ,Staff Payment,BA0000308453,15.00,
BEIS,The Insolvency Service,05/10/2017,Travel and Subsistence,CRIMINAL ENFORCEMENT                                                                                ,Staff Payment,BA0000308453,63.00,                      
BEIS,The Insolvency Service,05/10/2017,Travel and Subsistence,CUSTOMER AND COMMUNICATIONS                                                                         ,Staff Payment,BA0000308453,10.00,                      
BEIS,The Insolvency Service,05/10/2017,Travel and Subsistence,CUSTOMER AND COMMUNICATIONS                                                                         ,Staff Payment,BA0000308453,4.84,                      
BEIS,The Insolvency Service,05/10/2017,Travel and Subsistence,EXTERNAL AFFAIRS                                                                                    ,Staff Payment,BA0000308453,8.80,
BEIS,The Insolvency Service,05/10/2017,Travel and Subsistence,EXTERNAL AFFAIRS                                                                                    ,Staff Payment,BA0000308453,10.20,
BEIS,The Insolvency Service,05/10/2017,Travel and Subsistence,EXTERNAL AFFAIRS                                                                                    ,Staff Payment,BA0000308453,27.50,
BEIS,The Insolvency Service,05/10/2017,Travel and Subsistence,EXTERNAL AFFAIRS                                                                                    ,Staff Payment,BA0000308453,31.30,
BEIS,The Insolvency Service,05/10/2017,Travel and Subsistence,FINANCE AND COMMERCIAL                                                                              ,Staff Payment,BA0000308453,40.50,                      
BEIS,The Insolvency Service,05/10/2017,Travel and Subsistence,FINANCE AND COMMERCIAL                                                                              ,Staff Payment,BA0000308453,2.40,
BEIS,The Insolvency Service,05/10/2017,Travel and Subsistence,FINANCE AND COMMERCIAL                                                                              ,Staff Payment,BA0000308453,12.50,
BEIS,The Insolvency Service,05/10/2017,Travel and Subsistence,INFORMATION TECHNOLOGY                                                                              ,Staff Payment,BA0000308453,3.00,
BEIS,The Insolvency Service,05/10/2017,Travel and Subsistence,INFORMATION TECHNOLOGY                                                                              ,Staff Payment,BA0000308453,3.20,
BEIS,The Insolvency Service,05/10/2017,Travel and Subsistence,INFORMATION TECHNOLOGY                                                                              ,Staff Payment,BA0000308453,3.69,
BEIS,The Insolvency Service,05/10/2017,Travel and Subsistence,INFORMATION TECHNOLOGY                                                                              ,Staff Payment,BA0000308453,4.00,
BEIS,The Insolvency Service,05/10/2017,Travel and Subsistence,INFORMATION TECHNOLOGY                                                                              ,Staff Payment,BA0000308453,4.09,
BEIS,The Insolvency Service,05/10/2017,Travel and Subsistence,INFORMATION TECHNOLOGY                                                                              ,Staff Payment,BA0000308453,4.10,
BEIS,The Insolvency Service,05/10/2017,Travel and Subsistence,INFORMATION TECHNOLOGY                                                                              ,Staff Payment,BA0000308453,9.50,
BEIS,The Insolvency Service,05/10/2017,Travel and Subsistence,INFORMATION TECHNOLOGY                                                                              ,Staff Payment,BA0000308453,14.47,
BEIS,The Insolvency Service,05/10/2017,Travel and Subsistence,INFORMATION TECHNOLOGY                                                                              ,Staff Payment,BA0000308453,14.95,
BEIS,The Insolvency Service,05/10/2017,Travel and Subsistence,INVESTIGATIONS & ENFORCEMENT                                                                        ,Staff Payment,BA0000308453,6.75,                      
BEIS,The Insolvency Service,05/10/2017,Travel and Subsistence,INVESTIGATIONS & ENFORCEMENT                                                                        ,Staff Payment,BA0000308453,11.50,                      
BEIS,The Insolvency Service,05/10/2017,Travel and Subsistence,INVESTIGATIONS & ENFORCEMENT                                                                        ,Staff Payment,BA0000308453,13.50,                      
BEIS,The Insolvency Service,05/10/2017,Travel and Subsistence,INVESTIGATIONS & ENFORCEMENT                                                                        ,Staff Payment,BA0000308453,13.98,                      
BEIS,The Insolvency Service,05/10/2017,Travel and Subsistence,INVESTIGATIONS & ENFORCEMENT                                                                        ,Staff Payment,BA0000308453,23.00,                      
BEIS,The Insolvency Service,05/10/2017,Travel and Subsistence,INVESTIGATIONS & ENFORCEMENT                                                                        ,Staff Payment,BA0000308453,45.00,                      
BEIS,The Insolvency Service,05/10/2017,Travel and Subsistence,INVESTIGATIONS & ENFORCEMENT                                                                        ,Staff Payment,BA0000308453,34.20,                      
BEIS,The Insolvency Service,05/10/2017,Travel and Subsistence,INVESTIGATIONS & ENFORCEMENT                                                                        ,Staff Payment,BA0000308453,4.39,
BEIS,The Insolvency Service,05/10/2017,Travel and Subsistence,INVESTIGATIONS & ENFORCEMENT                                                                        ,Staff Payment,BA0000308453,5.00,
BEIS,The Insolvency Service,05/10/2017,Travel and Subsistence,INVESTIGATIONS & ENFORCEMENT                                                                        ,Staff Payment,BA0000308453,6.60,
BEIS,The Insolvency Service,05/10/2017,Travel and Subsistence,INVESTIGATIONS & ENFORCEMENT                                                                        ,Staff Payment,BA0000308453,10.00,
BEIS,The Insolvency Service,05/10/2017,Travel and Subsistence,OFFICIAL RECEIVER SERVICES                                                                          ,Staff Payment,BA0000308453,3.30,                      
BEIS,The Insolvency Service,05/10/2017,Travel and Subsistence,OFFICIAL RECEIVER SERVICES                                                                          ,Staff Payment,BA0000308453,5.00,                      
BEIS,The Insolvency Service,05/10/2017,Travel and Subsistence,OFFICIAL RECEIVER SERVICES                                                                          ,Staff Payment,BA0000308453,4.85,
BEIS,The Insolvency Service,05/10/2017,Travel and Subsistence,OFFICIAL RECEIVER SERVICES                                                                          ,Staff Payment,BA0000308453,5.00,
BEIS,The Insolvency Service,05/10/2017,Travel and Subsistence,OFFICIAL RECEIVER SERVICES                                                                          ,Staff Payment,BA0000308453,12.00,
BEIS,The Insolvency Service,05/10/2017,Travel and Subsistence,OFFICIAL RECEIVER SERVICES                                                                          ,Staff Payment,BA0000308453,15.00,
BEIS,The Insolvency Service,05/10/2017,Travel and Subsistence,OFFICIAL RECEIVER SERVICES                                                                          ,Staff Payment,BA0000308453,4.65,
BEIS,The Insolvency Service,05/10/2017,Travel and Subsistence,OFFICIAL RECEIVER SERVICES                                                                          ,Staff Payment,BA0000308453,5.00,
BEIS,The Insolvency Service,05/10/2017,Travel and Subsistence,OFFICIAL RECEIVER SERVICES                                                                          ,Staff Payment,BA0000308453,12.00,
BEIS,The Insolvency Service,05/10/2017,Travel and Subsistence,OFFICIAL RECEIVER SERVICES                                                                          ,Staff Payment,BA0000308453,4.40,
BEIS,The Insolvency Service,05/10/2017,Travel and Subsistence,OFFICIAL RECEIVER SERVICES                                                                          ,Staff Payment,BA0000308453,12.00,
BEIS,The Insolvency Service,05/10/2017,Travel and Subsistence,OFFICIAL RECEIVER SERVICES                                                                          ,Staff Payment,BA0000308453,2.95,
BEIS,The Insolvency Service,05/10/2017,Travel and Subsistence,OFFICIAL RECEIVER SERVICES                                                                          ,Staff Payment,BA0000308453,5.00,
BEIS,The Insolvency Service,05/10/2017,Travel and Subsistence,OFFICIAL RECEIVER SERVICES                                                                          ,Staff Payment,BA0000308453,12.00,
BEIS,The Insolvency Service,05/10/2017,Travel and Subsistence,OFFICIAL RECEIVER SERVICES                                                                          ,Staff Payment,BA0000308453,3.94,
BEIS,The Insolvency Service,05/10/2017,Travel and Subsistence,OFFICIAL RECEIVER SERVICES                                                                          ,Staff Payment,BA0000308453,12.00,
BEIS,The Insolvency Service,05/10/2017,Travel and Subsistence,OFFICIAL RECEIVER SERVICES                                                                          ,Staff Payment,BA0000308453,2.40,
BEIS,The Insolvency Service,05/10/2017,Travel and Subsistence,OFFICIAL RECEIVER SERVICES                                                                          ,Staff Payment,BA0000308453,49.50,
BEIS,The Insolvency Service,05/10/2017,Travel and Subsistence,OFFICIAL RECEIVER SERVICES                                                                          ,Staff Payment,BA0000308453,85.00,
BEIS,The Insolvency Service,05/10/2017,Travel and Subsistence,OFFICIAL RECEIVER SERVICES                                                                          ,Staff Payment,BA0000308453,2.40,
BEIS,The Insolvency Service,05/10/2017,Travel and Subsistence,OFFICIAL RECEIVER SERVICES                                                                          ,Staff Payment,BA0000308453,4.74,
BEIS,The Insolvency Service,05/10/2017,Travel and Subsistence,OFFICIAL RECEIVER SERVICES                                                                          ,Staff Payment,BA0000308453,13.00,
BEIS,The Insolvency Service,05/10/2017,Travel and Subsistence,OFFICIAL RECEIVER SERVICES                                                                          ,Staff Payment,BA0000308453,5.70,
BEIS,The Insolvency Service,05/10/2017,Travel and Subsistence,OFFICIAL RECEIVER SERVICES                                                                          ,Staff Payment,BA0000308453,39.60,
BEIS,The Insolvency Service,05/10/2017,Travel and Subsistence,OFFICIAL RECEIVER SERVICES                                                                          ,Staff Payment,BA0000308453,6.00,
BEIS,The Insolvency Service,05/10/2017,Travel and Subsistence,OFFICIAL RECEIVER SERVICES                                                                          ,Staff Payment,BA0000308453,22.50,
BEIS,The Insolvency Service,06/10/2017,Accommodation,BUSINESS SERVICES DIRECTORATE                                                                       ,IRON MOUNTAIN (UK) LTD,BA0000308483,17.50,607937516
BEIS,The Insolvency Service,06/10/2017,Accommodation,BUSINESS SERVICES DIRECTORATE                                                                       ,IRON MOUNTAIN (UK) LTD,BA0000308483,1235.90,607937516
BEIS,The Insolvency Service,06/10/2017,Accommodation,CUSTOMER AND COMMUNICATIONS                                                                         ,IRON MOUNTAIN (UK) LTD,BA0000308483,1.26,607937516
BEIS,The Insolvency Service,06/10/2017,Accommodation,ESTATES,BEIS,BA0000308482,212.10,888825550
BEIS,The Insolvency Service,06/10/2017,Accommodation,ESTATES,BEIS,BA0000308482,218.10,888825550
BEIS,The Insolvency Service,06/10/2017,Accommodation,ESTATES,BEIS,BA0000308482,218.50,888825550
BEIS,The Insolvency Service,06/10/2017,Accommodation,ESTATES,BEIS,BA0000308482,248.80,888825550
BEIS,The Insolvency Service,06/10/2017,Accommodation,ESTATES,BEIS,BA0000308482,697.77,888825550
BEIS,The Insolvency Service,06/10/2017,Accommodation,ESTATES,BEIS,BA0000308482,4562.35,888825550
BEIS,The Insolvency Service,06/10/2017,Accommodation,ESTATES,BEIS,BA0000308482,5305.68,888825550
BEIS,The Insolvency Service,06/10/2017,Accommodation,ESTATES,BEIS,BA0000308482,20704.19,888825550
BEIS,The Insolvency Service,06/10/2017,Accommodation,ESTATES,BEIS,BA0000308481,1268.00,888825550
BEIS,The Insolvency Service,06/10/2017,Accommodation,ESTATES,BEIS,BA0000308481,3402.00,888825550
BEIS,The Insolvency Service,06/10/2017,Accommodation,ESTATES,BEIS,BA0000308481,7310.00,888825550
BEIS,The Insolvency Service,06/10/2017,Accommodation,ESTATES,BEIS,BA0000308481,7845.00,888825550
BEIS,The Insolvency Service,06/10/2017,Accommodation,ESTATES,BEIS,BA0000308481,8702.00,888825550
BEIS,The Insolvency Service,06/10/2017,Accommodation,ESTATES,BEIS,BA0000308481,12289.00,888825550
BEIS,The Insolvency Service,06/10/2017,Accommodation,ESTATES,BEIS,BA0000308481,14101.00,888825550
BEIS,The Insolvency Service,06/10/2017,Accommodation,ESTATES,BEIS,BA0000308481,34789.00,888825550
BEIS,The Insolvency Service,06/10/2017,Accommodation,ESTATES,BEIS,BA0000308481,38688.00,888825550
BEIS,The Insolvency Service,06/10/2017,Accommodation,ESTATES,BEIS,BA0000308481,134483.00,888825550
BEIS,The Insolvency Service,06/10/2017,Accommodation,ESTATES,BEIS,BA0000308481,290943.00,888825550
BEIS,The Insolvency Service,06/10/2017,Accommodation,ESTATES,BEIS,BA0000308492,1471.74,888825550
BEIS,The Insolvency Service,06/10/2017,Accommodation,ESTATES,BEIS,BA0000308493,1001.52,888825550
BEIS,The Insolvency Service,06/10/2017,Accommodation,ESTATES,CBRE LIMITED,BA0000308480,3225.42,
BEIS,The Insolvency Service,06/10/2017,Accommodation,ESTATES,GVA                                                         ,BA0000308479,20700.00,657719590
BEIS,The Insolvency Service,06/10/2017,Accommodation,ESTATES,GVA                                                         ,BA0000308479,46156.50,657719590
BEIS,The Insolvency Service,06/10/2017,Accommodation,ESTATES,LAND REGISTRY TELFORD,BA0000308471,833.53,
BEIS,The Insolvency Service,06/10/2017,Accommodation,ESTATES,LAND REGISTRY TELFORD,BA0000308473,108.87,
BEIS,The Insolvency Service,06/10/2017,Accommodation,ESTATES                                                                                             ,LAND REGISTRY TELFORD,BA0000308474,2412.70,
BEIS,The Insolvency Service,06/10/2017,Accommodation,ESTATES,LAND REGISTRY TELFORD,BA0000308475,96.68,
BEIS,The Insolvency Service,06/10/2017,Accommodation,ESTATES                                                                                             ,LAND REGISTRY TELFORD,BA0000308476,2821.80,
BEIS,The Insolvency Service,06/10/2017,Accommodation,EXTERNAL AFFAIRS                                                                                    ,IRON MOUNTAIN (UK) LTD,BA0000308483,35.56,607937516
BEIS,The Insolvency Service,06/10/2017,Accommodation,EXTERNAL AFFAIRS                                                                                    ,IRON MOUNTAIN (UK) LTD,BA0000308483,119.59,607937516
BEIS,The Insolvency Service,06/10/2017,Accommodation,INFORMATION TECHNOLOGY                                                                              ,IRON MOUNTAIN (UK) LTD,BA0000308483,216.76,607937516
BEIS,The Insolvency Service,06/10/2017,Accommodation,INVESTIGATIONS & ENFORCEMENT                                                                        ,IRON MOUNTAIN (UK) LTD,BA0000308483,2099.08,607937516
BEIS,The Insolvency Service,06/10/2017,Accommodation,OFFICIAL RECEIVER SERVICES                                                                          ,IRON MOUNTAIN (UK) LTD,BA0000308483,11514.36,607937516
BEIS,The Insolvency Service,06/10/2017,Accommodation,OFFICIAL RECEIVER SERVICES                                                                          ,LAND REGISTRY TELFORD,BA0000308472,229.75,
BEIS,The Insolvency Service,06/10/2017,Accommodation,OFFICIAL RECEIVER SERVICES                                                                          ,LAND REGISTRY TELFORD,BA0000308477,35.76,
BEIS,The Insolvency Service,06/10/2017,Accommodation,P&C - People Relations                                                                              ,IRON MOUNTAIN (UK) LTD,BA0000308483,65.39,607937516
BEIS,The Insolvency Service,06/10/2017,Computer and IT Systems,INFORMATION TECHNOLOGY                                                                              ,Daisy Communications Ltd                                    ,BA0000308478,72380.41,                      
BEIS,The Insolvency Service,06/10/2017,Employee Related Costs,FINANCE AND COMMERCIAL                                                                              ,Staff Payment,BA0000308491,17.00,                      
BEIS,The Insolvency Service,06/10/2017,Employee Related Costs,OFFICIAL RECEIVER SERVICES                                                                          ,Staff Payment,BA0000308491,81.00,
BEIS,The Insolvency Service,06/10/2017,Insolvency Case Related Costs,FINANCE AND COMMERCIAL                                                                              ,SIRS (EUROPE) LTD,BA0000308484,16954.32,990834974
BEIS,The Insolvency Service,06/10/2017,Investigation and Enforcement Costs,INVESTIGATIONS & ENFORCEMENT                                                                        ,DWF                                                         ,BA0000308498,3101.75,                      
BEIS,The Insolvency Service,06/10/2017,Investigation and Enforcement Costs,INVESTIGATIONS & ENFORCEMENT                                                                        ,GOWLING WRAGGE LAWRENCE GRAHAM  & CO                        ,BA0000308497,6332.25,858698838
BEIS,The Insolvency Service,06/10/2017,Investigation and Enforcement Costs,INVESTIGATIONS & ENFORCEMENT                                                                        ,HOWES PERCIVAL,BA0000308486,6218.30,119523573
BEIS,The Insolvency Service,06/10/2017,Investigation and Enforcement Costs,INVESTIGATIONS & ENFORCEMENT                                                                        ,GOWLING WRAGGE LAWRENCE GRAHAM  & CO                        ,BA0000308496,9369.96,858698838
BEIS,The Insolvency Service,06/10/2017,Investigation and Enforcement Costs,INVESTIGATIONS & ENFORCEMENT                                                                        ,GOWLING WRAGGE LAWRENCE GRAHAM  & CO                        ,BA0000308497,9023.70,858698838
BEIS,The Insolvency Service,06/10/2017,Investigation and Enforcement Costs,INVESTIGATIONS & ENFORCEMENT                                                                        ,HOWES PERCIVAL,BA0000308485,1106.98,119523573
BEIS,The Insolvency Service,06/10/2017,Investigation and Enforcement Costs,INVESTIGATIONS & ENFORCEMENT                                                                        ,HOWES PERCIVAL,BA0000308487,144.00,119523573
BEIS,The Insolvency Service,06/10/2017,Investigation and Enforcement Costs,INVESTIGATIONS & ENFORCEMENT                                                                        ,HOWES PERCIVAL,BA0000308488,14.55,119523573
BEIS,The Insolvency Service,06/10/2017,Investigation and Enforcement Costs,INVESTIGATIONS & ENFORCEMENT                                                                        ,HOWES PERCIVAL,BA0000308489,321.25,119523573
BEIS,The Insolvency Service,06/10/2017,Investigation and Enforcement Costs,INVESTIGATIONS & ENFORCEMENT                                                                        ,HOWES PERCIVAL,BA0000308490,32886.71,119523573
BEIS,The Insolvency Service,06/10/2017,Investigation and Enforcement Costs,INVESTIGATIONS & ENFORCEMENT                                                                        ,HOWES PERCIVAL,BA0000308494,676.68,119523573
BEIS,The Insolvency Service,06/10/2017,Investigation and Enforcement Costs,INVESTIGATIONS & ENFORCEMENT                                                                        ,HOWES PERCIVAL,BA0000308495,698.40,119523573
BEIS,The Insolvency Service,06/10/2017,Investigation and Enforcement Costs,INVESTIGATIONS & ENFORCEMENT                                                                        ,HOWES PERCIVAL,BA0000308499,14611.50,119523573
BEIS,The Insolvency Service,06/10/2017,Travel and Subsistence,BUSINESS SERVICES DIRECTORATE                                                                       ,Staff Payment,BA0000308491,10.00,
BEIS,The Insolvency Service,06/10/2017,Travel and Subsistence,BUSINESS SERVICES DIRECTORATE                                                                       ,Staff Payment,BA0000308491,14.40,
BEIS,The Insolvency Service,06/10/2017,Travel and Subsistence,BUSINESS SERVICES DIRECTORATE                                                                       ,Staff Payment,BA0000308491,14.60,
BEIS,The Insolvency Service,06/10/2017,Travel and Subsistence,BUSINESS SERVICES DIRECTORATE                                                                       ,Staff Payment,BA0000308491,16.60,
BEIS,The Insolvency Service,06/10/2017,Travel and Subsistence,BUSINESS SERVICES DIRECTORATE                                                                       ,Staff Payment,BA0000308491,3.15,
BEIS,The Insolvency Service,06/10/2017,Travel and Subsistence,BUSINESS SERVICES DIRECTORATE                                                                       ,Staff Payment,BA0000308491,4.50,
BEIS,The Insolvency Service,06/10/2017,Travel and Subsistence,BUSINESS SERVICES DIRECTORATE                                                                       ,Staff Payment,BA0000308491,4.79,
BEIS,The Insolvency Service,06/10/2017,Travel and Subsistence,BUSINESS SERVICES DIRECTORATE                                                                       ,Staff Payment,BA0000308491,5.00,
BEIS,The Insolvency Service,06/10/2017,Travel and Subsistence,BUSINESS SERVICES DIRECTORATE                                                                       ,Staff Payment,BA0000308491,13.99,
BEIS,The Insolvency Service,06/10/2017,Travel and Subsistence,BUSINESS SERVICES DIRECTORATE                                                                       ,Staff Payment,BA0000308491,51.70,
BEIS,The Insolvency Service,06/10/2017,Travel and Subsistence,BUSINESS SERVICES DIRECTORATE                                                                       ,Staff Payment,BA0000308491,53.35,
BEIS,The Insolvency Service,06/10/2017,Travel and Subsistence,BUSINESS SERVICES DIRECTORATE                                                                       ,Staff Payment,BA0000308491,3.10,                      
BEIS,The Insolvency Service,06/10/2017,Travel and Subsistence,BUSINESS SERVICES DIRECTORATE                                                                       ,Staff Payment,BA0000308491,3.90,                      
BEIS,The Insolvency Service,06/10/2017,Travel and Subsistence,BUSINESS SERVICES DIRECTORATE                                                                       ,Staff Payment,BA0000308491,5.00,                      
BEIS,The Insolvency Service,06/10/2017,Travel and Subsistence,BUSINESS SERVICES DIRECTORATE                                                                       ,Staff Payment,BA0000308491,15.00,                      
BEIS,The Insolvency Service,06/10/2017,Travel and Subsistence,FINANCE AND COMMERCIAL                                                                              ,Staff Payment,BA0000308491,3.60,                      
BEIS,The Insolvency Service,06/10/2017,Travel and Subsistence,FINANCE AND COMMERCIAL                                                                              ,Staff Payment,BA0000308491,3.85,                      
BEIS,The Insolvency Service,06/10/2017,Travel and Subsistence,FINANCE AND COMMERCIAL                                                                              ,Staff Payment,BA0000308491,6.00,                      
BEIS,The Insolvency Service,06/10/2017,Travel and Subsistence,FINANCE AND COMMERCIAL                                                                              ,Staff Payment,BA0000308491,22.50,                      
BEIS,The Insolvency Service,06/10/2017,Travel and Subsistence,FINANCE AND COMMERCIAL                                                                              ,Staff Payment,BA0000308491,61.75,                      
BEIS,The Insolvency Service,06/10/2017,Travel and Subsistence,FINANCE AND COMMERCIAL                                                                              ,Staff Payment,BA0000308491,5.00,                      
BEIS,The Insolvency Service,06/10/2017,Travel and Subsistence,FINANCE AND COMMERCIAL                                                                              ,Staff Payment,BA0000308491,15.00,                      
BEIS,The Insolvency Service,06/10/2017,Travel and Subsistence,FINANCE AND COMMERCIAL                                                                              ,Staff Payment,BA0000308491,38.57,                      
BEIS,The Insolvency Service,06/10/2017,Travel and Subsistence,INVESTIGATIONS & ENFORCEMENT                                                                        ,Staff Payment,BA0000308491,13.50,
BEIS,The Insolvency Service,06/10/2017,Travel and Subsistence,OFFICIAL RECEIVER SERVICES                                                                          ,Staff Payment,BA0000308491,5.00,
BEIS,The Insolvency Service,06/10/2017,Travel and Subsistence,OFFICIAL RECEIVER SERVICES                                                                          ,Staff Payment,BA0000308491,2.40,
BEIS,The Insolvency Service,06/10/2017,Travel and Subsistence,OFFICIAL RECEIVER SERVICES                                                                          ,Staff Payment,BA0000308491,4.20,
BEIS,The Insolvency Service,06/10/2017,Travel and Subsistence,OFFICIAL RECEIVER SERVICES                                                                          ,Staff Payment,BA0000308491,5.00,
BEIS,The Insolvency Service,06/10/2017,Travel and Subsistence,OFFICIAL RECEIVER SERVICES                                                                          ,Staff Payment,BA0000308491,15.00,
BEIS,The Insolvency Service,06/10/2017,Travel and Subsistence,OFFICIAL RECEIVER SERVICES                                                                          ,Staff Payment,BA0000308491,2.40,
BEIS,The Insolvency Service,06/10/2017,Travel and Subsistence,OFFICIAL RECEIVER SERVICES                                                                          ,Staff Payment,BA0000308491,4.65,
BEIS,The Insolvency Service,06/10/2017,Travel and Subsistence,OFFICIAL RECEIVER SERVICES                                                                          ,Staff Payment,BA0000308491,5.00,
BEIS,The Insolvency Service,06/10/2017,Travel and Subsistence,OFFICIAL RECEIVER SERVICES                                                                          ,Staff Payment,BA0000308491,12.00,
BEIS,The Insolvency Service,06/10/2017,Travel and Subsistence,OFFICIAL RECEIVER SERVICES                                                                          ,Staff Payment,BA0000308491,24.00,
BEIS,The Insolvency Service,06/10/2017,Travel and Subsistence,OFFICIAL RECEIVER SERVICES                                                                          ,Staff Payment,BA0000308491,4.00,
BEIS,The Insolvency Service,06/10/2017,Travel and Subsistence,OFFICIAL RECEIVER SERVICES                                                                          ,Staff Payment,BA0000308491,4.40,
BEIS,The Insolvency Service,06/10/2017,Travel and Subsistence,OFFICIAL RECEIVER SERVICES                                                                          ,Staff Payment,BA0000308491,4.60,
BEIS,The Insolvency Service,06/10/2017,Travel and Subsistence,OFFICIAL RECEIVER SERVICES                                                                          ,Staff Payment,BA0000308491,3.00,
BEIS,The Insolvency Service,06/10/2017,Travel and Subsistence,OFFICIAL RECEIVER SERVICES                                                                          ,Staff Payment,BA0000308491,31.95,
BEIS,The Insolvency Service,06/10/2017,Travel and Subsistence,OFFICIAL RECEIVER SERVICES                                                                          ,Staff Payment,BA0000308491,1.70,
BEIS,The Insolvency Service,06/10/2017,Travel and Subsistence,OFFICIAL RECEIVER SERVICES                                                                          ,Staff Payment,BA0000308491,14.40,
BEIS,The Insolvency Service,06/10/2017,Travel and Subsistence,OFFICIAL RECEIVER SERVICES                                                                          ,Staff Payment,BA0000308491,3.00,
BEIS,The Insolvency Service,06/10/2017,Travel and Subsistence,OFFICIAL RECEIVER SERVICES                                                                          ,Staff Payment,BA0000308491,1.10,
BEIS,The Insolvency Service,06/10/2017,Travel and Subsistence,OFFICIAL RECEIVER SERVICES                                                                          ,Staff Payment,BA0000308491,5.00,
BEIS,The Insolvency Service,06/10/2017,Travel and Subsistence,OFFICIAL RECEIVER SERVICES                                                                          ,Staff Payment,BA0000308491,67.50,
BEIS,The Insolvency Service,06/10/2017,Travel and Subsistence,OFFICIAL RECEIVER SERVICES                                                                          ,Staff Payment,BA0000308491,6.00,
BEIS,The Insolvency Service,06/10/2017,Travel and Subsistence,OFFICIAL RECEIVER SERVICES                                                                          ,Staff Payment,BA0000308491,5.00,
BEIS,The Insolvency Service,06/10/2017,Travel and Subsistence,OFFICIAL RECEIVER SERVICES                                                                          ,Staff Payment,BA0000308491,5.00,
BEIS,The Insolvency Service,06/10/2017,Travel and Subsistence,OFFICIAL RECEIVER SERVICES                                                                          ,Staff Payment,BA0000308491,1.50,                      
BEIS,The Insolvency Service,06/10/2017,Travel and Subsistence,OFFICIAL RECEIVER SERVICES                                                                          ,Staff Payment,BA0000308491,5.00,                      
BEIS,The Insolvency Service,06/10/2017,Travel and Subsistence,OFFICIAL RECEIVER SERVICES                                                                          ,Staff Payment,BA0000308491,5.00,
BEIS,The Insolvency Service,06/10/2017,Travel and Subsistence,OFFICIAL RECEIVER SERVICES                                                                          ,Staff Payment,BA0000308491,15.00,
BEIS,The Insolvency Service,06/10/2017,Travel and Subsistence,OFFICIAL RECEIVER SERVICES                                                                          ,Staff Payment,BA0000308491,5.00,
BEIS,The Insolvency Service,06/10/2017,Travel and Subsistence,OFFICIAL RECEIVER SERVICES                                                                          ,Staff Payment,BA0000308491,5.00,                      
BEIS,The Insolvency Service,06/10/2017,Travel and Subsistence,OFFICIAL RECEIVER SERVICES                                                                          ,Staff Payment,BA0000308491,12.50,                      
BEIS,The Insolvency Service,06/10/2017,Travel and Subsistence,OFFICIAL RECEIVER SERVICES                                                                          ,Staff Payment,BA0000308491,1.00,
BEIS,The Insolvency Service,06/10/2017,Travel and Subsistence,OFFICIAL RECEIVER SERVICES                                                                          ,Staff Payment,BA0000308491,7.65,
BEIS,The Insolvency Service,06/10/2017,Travel and Subsistence,OFFICIAL RECEIVER SERVICES                                                                          ,Staff Payment,BA0000308491,5.00,
BEIS,The Insolvency Service,06/10/2017,Travel and Subsistence,OFFICIAL RECEIVER SERVICES                                                                          ,Staff Payment,BA0000308491,13.00,
BEIS,The Insolvency Service,06/10/2017,Travel and Subsistence,OFFICIAL RECEIVER SERVICES                                                                          ,Staff Payment,BA0000308491,3.80,
BEIS,The Insolvency Service,06/10/2017,Travel and Subsistence,OFFICIAL RECEIVER SERVICES                                                                          ,Staff Payment,BA0000308491,2.00,
BEIS,The Insolvency Service,06/10/2017,Travel and Subsistence,OFFICIAL RECEIVER SERVICES                                                                          ,Staff Payment,BA0000308491,7.65,
BEIS,The Insolvency Service,06/10/2017,Travel and Subsistence,OFFICIAL RECEIVER SERVICES                                                                          ,Staff Payment,BA0000308491,65.69,
BEIS,The Insolvency Service,06/10/2017,Travel and Subsistence,OFFICIAL RECEIVER SERVICES                                                                          ,Staff Payment,BA0000308491,68.65,
BEIS,The Insolvency Service,06/10/2017,Travel and Subsistence,OFFICIAL RECEIVER SERVICES                                                                          ,Staff Payment,BA0000308491,18.90,
BEIS,The Insolvency Service,09/10/2017,Computer and IT Systems,INFORMATION TECHNOLOGY                                                                              ,ATOS IT SERVICES UK LTD,BA0000308516,20916.69,
BEIS,The Insolvency Service,09/10/2017,Computer and IT Systems,INFORMATION TECHNOLOGY                                                                              ,ATOS IT SERVICES UK LTD,BA0000308517,2444.29,
BEIS,The Insolvency Service,09/10/2017,Computer and IT Systems,INFORMATION TECHNOLOGY                                                                              ,ATOS IT SERVICES UK LTD,BA0000308518,30621.15,
BEIS,The Insolvency Service,09/10/2017,Employee Related Costs,INVESTIGATIONS & ENFORCEMENT                                                                        ,Staff Payment,BA0000308526,5.80,
BEIS,The Insolvency Service,09/10/2017,Employee Related Costs,INVESTIGATIONS & ENFORCEMENT                                                                        ,Staff Payment,BA0000308526,31.60,
BEIS,The Insolvency Service,09/10/2017,Insolvency Case Related Costs,OFFICIAL RECEIVER SERVICES                                                                          ,COMPANIES HOUSE,BA0000308508,5.00,GD255
BEIS,The Insolvency Service,09/10/2017,Insolvency Case Related Costs,OFFICIAL RECEIVER SERVICES                                                                          ,COMPANIES HOUSE,BA0000308519,6.00,GD255
BEIS,The Insolvency Service,09/10/2017,Insolvency Case Related Costs,OFFICIAL RECEIVER SERVICES                                                                          ,Staff Payment,BA0000308526,10.00,
BEIS,The Insolvency Service,09/10/2017,Investigation and Enforcement Costs,INVESTIGATIONS & ENFORCEMENT                                                                        ,BOND DICKINSON                                              ,BA0000308510,5398.00,123392627
BEIS,The Insolvency Service,09/10/2017,Investigation and Enforcement Costs,INVESTIGATIONS & ENFORCEMENT                                                                        ,SHEPHERD & WEDDERBURN WS (SCOTTISH CASES)                   ,BA0000308514,184.78,890559386
BEIS,The Insolvency Service,09/10/2017,Investigation and Enforcement Costs,INVESTIGATIONS & ENFORCEMENT                                                                        ,BOND DICKINSON                                              ,BA0000308509,6081.70,123392627
BEIS,The Insolvency Service,09/10/2017,Investigation and Enforcement Costs,INVESTIGATIONS & ENFORCEMENT                                                                        ,BOND DICKINSON                                              ,BA0000308510,1520.00,123392627
BEIS,The Insolvency Service,09/10/2017,Investigation and Enforcement Costs,INVESTIGATIONS & ENFORCEMENT                                                                        ,BOND DICKINSON                                              ,BA0000308510,5035.80,123392627
BEIS,The Insolvency Service,09/10/2017,Investigation and Enforcement Costs,INVESTIGATIONS & ENFORCEMENT                                                                        ,BOND DICKINSON                                              ,BA0000308510,8748.50,123392627
BEIS,The Insolvency Service,09/10/2017,Investigation and Enforcement Costs,INVESTIGATIONS & ENFORCEMENT                                                                        ,BOND DICKINSON                                              ,BA0000308510,11969.90,123392627
BEIS,The Insolvency Service,09/10/2017,Investigation and Enforcement Costs,INVESTIGATIONS & ENFORCEMENT                                                                        ,BOND DICKINSON                                              ,BA0000308510,30797.40,123392627
BEIS,The Insolvency Service,09/10/2017,Investigation and Enforcement Costs,INVESTIGATIONS & ENFORCEMENT                                                                        ,DWF                                                         ,BA0000308502,1979.15,                      
BEIS,The Insolvency Service,09/10/2017,Investigation and Enforcement Costs,INVESTIGATIONS & ENFORCEMENT                                                                        ,DWF                                                         ,BA0000308503,22562.30,                      
BEIS,The Insolvency Service,09/10/2017,Investigation and Enforcement Costs,INVESTIGATIONS & ENFORCEMENT                                                                        ,DWF                                                         ,BA0000308504,710.35,                      
BEIS,The Insolvency Service,09/10/2017,Investigation and Enforcement Costs,INVESTIGATIONS & ENFORCEMENT                                                                        ,DWF                                                         ,BA0000308505,6635.60,                      
BEIS,The Insolvency Service,09/10/2017,Investigation and Enforcement Costs,INVESTIGATIONS & ENFORCEMENT                                                                        ,DWF                                                         ,BA0000308506,253.10,                      
BEIS,The Insolvency Service,09/10/2017,Investigation and Enforcement Costs,INVESTIGATIONS & ENFORCEMENT                                                                        ,DWF                                                         ,BA0000308507,1818.25,                      
BEIS,The Insolvency Service,09/10/2017,Investigation and Enforcement Costs,INVESTIGATIONS & ENFORCEMENT                                                                        ,SHEPHERD & WEDDERBURN WS (SCOTTISH CASES)                   ,BA0000308511,686.39,890559386
BEIS,The Insolvency Service,09/10/2017,Investigation and Enforcement Costs,INVESTIGATIONS & ENFORCEMENT                                                                        ,SHEPHERD & WEDDERBURN WS (SCOTTISH CASES)                   ,BA0000308513,148.67,890559386
BEIS,The Insolvency Service,09/10/2017,Investigation and Enforcement Costs,INVESTIGATIONS & ENFORCEMENT                                                                        ,SHEPHERD & WEDDERBURN WS (SCOTTISH CASES)                   ,BA0000308513,900.40,890559386
BEIS,The Insolvency Service,09/10/2017,Investigation and Enforcement Costs,INVESTIGATIONS & ENFORCEMENT                                                                        ,SHEPHERD & WEDDERBURN WS (SCOTTISH CASES)                   ,BA0000308513,3469.63,890559386
BEIS,The Insolvency Service,09/10/2017,Investigation and Enforcement Costs,INVESTIGATIONS & ENFORCEMENT                                                                        ,SHEPHERD & WEDDERBURN WS (SCOTTISH CASES)                   ,BA0000308514,7299.98,890559386
BEIS,The Insolvency Service,09/10/2017,Investigation and Enforcement Costs,INVESTIGATIONS & ENFORCEMENT                                                                        ,TNT UK LTD,BA0000308523,9.09,354715057
BEIS,The Insolvency Service,09/10/2017,Legal Costs,P&C - People Relations                                                                              ,GOVERNMENT LEGAL DEPARTMENT                                 ,BA0000308521,446.40,888823066
BEIS,The Insolvency Service,09/10/2017,Office Supplies and Services,INVESTIGATIONS & ENFORCEMENT                                                                        ,Staff Payment,BA0000308526,3.25,
BEIS,The Insolvency Service,09/10/2017,Office Supplies and Services,OFFICIAL RECEIVER SERVICES                                                                          ,Staff Payment,BA0000308526,0.80,
BEIS,The Insolvency Service,09/10/2017,Postage,ESTATES,PARCELFORCE WORLDWIDE,BA0000308520,5.99,243170002
BEIS,The Insolvency Service,09/10/2017,Postage,OFFICIAL RECEIVER SERVICES                                                                          ,PARCELFORCE WORLDWIDE,BA0000308520,5.95,243170002
BEIS,The Insolvency Service,09/10/2017,Postage,OFFICIAL RECEIVER SERVICES                                                                          ,PARCELFORCE WORLDWIDE,BA0000308520,35.27,243170002
BEIS,The Insolvency Service,09/10/2017,Postage,OFFICIAL RECEIVER SERVICES                                                                          ,PARCELFORCE WORLDWIDE,BA0000308520,162.61,243170002
BEIS,The Insolvency Service,09/10/2017,Redact Compensation and Losses,FINANCE AND COMMERCIAL,INSOLVENCY SERVICE,BA0000308515,51.82,
BEIS,The Insolvency Service,09/10/2017,Telecoms,INVESTIGATIONS & ENFORCEMENT                                                                        ,Staff Payment,BA0000308526,48.93,
BEIS,The Insolvency Service,09/10/2017,Travel and Subsistence,BUSINESS SERVICES DIRECTORATE                                                                       ,Staff Payment,BA0000308526,5.00,
BEIS,The Insolvency Service,09/10/2017,Travel and Subsistence,BUSINESS SERVICES DIRECTORATE                                                                       ,Staff Payment,BA0000308526,13.48,
BEIS,The Insolvency Service,09/10/2017,Travel and Subsistence,BUSINESS SERVICES DIRECTORATE                                                                       ,Staff Payment,BA0000308525,3.29,                      
BEIS,The Insolvency Service,09/10/2017,Travel and Subsistence,BUSINESS SERVICES DIRECTORATE                                                                       ,Staff Payment,BA0000308525,5.00,                      
BEIS,The Insolvency Service,09/10/2017,Travel and Subsistence,BUSINESS SERVICES DIRECTORATE                                                                       ,Staff Payment,BA0000308525,10.99,                      
BEIS,The Insolvency Service,09/10/2017,Travel and Subsistence,BUSINESS SERVICES DIRECTORATE                                                                       ,Staff Payment,BA0000308525,4.83,
BEIS,The Insolvency Service,09/10/2017,Travel and Subsistence,BUSINESS SERVICES DIRECTORATE                                                                       ,Staff Payment,BA0000308525,5.00,
BEIS,The Insolvency Service,09/10/2017,Travel and Subsistence,BUSINESS SERVICES DIRECTORATE                                                                       ,Staff Payment,BA0000308525,10.99,
BEIS,The Insolvency Service,09/10/2017,Travel and Subsistence,BUSINESS SERVICES DIRECTORATE                                                                       ,Staff Payment,BA0000308525,4.80,
BEIS,The Insolvency Service,09/10/2017,Travel and Subsistence,BUSINESS SERVICES DIRECTORATE                                                                       ,Staff Payment,BA0000308525,5.00,
BEIS,The Insolvency Service,09/10/2017,Travel and Subsistence,BUSINESS SERVICES DIRECTORATE                                                                       ,Staff Payment,BA0000308525,15.00,
BEIS,The Insolvency Service,09/10/2017,Travel and Subsistence,BUSINESS SERVICES DIRECTORATE                                                                       ,Staff Payment,BA0000308524,5.40,
BEIS,The Insolvency Service,09/10/2017,Travel and Subsistence,BUSINESS SERVICES DIRECTORATE                                                                       ,Staff Payment,BA0000308524,6.85,
BEIS,The Insolvency Service,09/10/2017,Travel and Subsistence,CRIMINAL ENFORCEMENT                                                                                ,Staff Payment,BA0000308526,55.43,                      
BEIS,The Insolvency Service,09/10/2017,Travel and Subsistence,CRIMINAL ENFORCEMENT                                                                                ,Staff Payment,BA0000308526,3.60,                      
BEIS,The Insolvency Service,09/10/2017,Travel and Subsistence,CRIMINAL ENFORCEMENT                                                                                ,Staff Payment,BA0000308526,5.00,                      
BEIS,The Insolvency Service,09/10/2017,Travel and Subsistence,CRIMINAL ENFORCEMENT                                                                                ,Staff Payment,BA0000308526,6.00,                      
BEIS,The Insolvency Service,09/10/2017,Travel and Subsistence,CRIMINAL ENFORCEMENT                                                                                ,Staff Payment,BA0000308526,12.00,                      
BEIS,The Insolvency Service,09/10/2017,Travel and Subsistence,CRIMINAL ENFORCEMENT                                                                                ,Staff Payment,BA0000308526,27.90,                      
BEIS,The Insolvency Service,09/10/2017,Travel and Subsistence,CRIMINAL ENFORCEMENT                                                                                ,Staff Payment,BA0000308526,29.25,                      
BEIS,The Insolvency Service,09/10/2017,Travel and Subsistence,CRIMINAL ENFORCEMENT                                                                                ,Staff Payment,BA0000308526,32.85,                      
BEIS,The Insolvency Service,09/10/2017,Travel and Subsistence,CRIMINAL ENFORCEMENT                                                                                ,Staff Payment,BA0000308526,39.60,                      
BEIS,The Insolvency Service,09/10/2017,Travel and Subsistence,CRIMINAL ENFORCEMENT                                                                                ,Staff Payment,BA0000308526,52.20,                      
BEIS,The Insolvency Service,09/10/2017,Travel and Subsistence,CRIMINAL ENFORCEMENT                                                                                ,Staff Payment,BA0000308526,84.60,                      
BEIS,The Insolvency Service,09/10/2017,Travel and Subsistence,INVESTIGATIONS & ENFORCEMENT                                                                        ,Staff Payment,BA0000308526,4.22,
BEIS,The Insolvency Service,09/10/2017,Travel and Subsistence,INVESTIGATIONS & ENFORCEMENT                                                                        ,Staff Payment,BA0000308526,12.00,
BEIS,The Insolvency Service,09/10/2017,Travel and Subsistence,INVESTIGATIONS & ENFORCEMENT                                                                        ,Staff Payment,BA0000308526,2.50,
BEIS,The Insolvency Service,09/10/2017,Travel and Subsistence,INVESTIGATIONS & ENFORCEMENT                                                                        ,Staff Payment,BA0000308526,3.50,
BEIS,The Insolvency Service,09/10/2017,Travel and Subsistence,INVESTIGATIONS & ENFORCEMENT                                                                        ,Staff Payment,BA0000308526,6.75,
BEIS,The Insolvency Service,09/10/2017,Travel and Subsistence,INVESTIGATIONS & ENFORCEMENT                                                                        ,Staff Payment,BA0000308526,7.20,
BEIS,The Insolvency Service,09/10/2017,Travel and Subsistence,INVESTIGATIONS & ENFORCEMENT                                                                        ,Staff Payment,BA0000308526,19.50,
BEIS,The Insolvency Service,09/10/2017,Travel and Subsistence,INVESTIGATIONS & ENFORCEMENT                                                                        ,Staff Payment,BA0000308526,20.00,
BEIS,The Insolvency Service,09/10/2017,Travel and Subsistence,INVESTIGATIONS & ENFORCEMENT                                                                        ,Staff Payment,BA0000308526,5.00,                      
BEIS,The Insolvency Service,09/10/2017,Travel and Subsistence,INVESTIGATIONS & ENFORCEMENT                                                                        ,Staff Payment,BA0000308526,39.15,                      
BEIS,The Insolvency Service,09/10/2017,Travel and Subsistence,INVESTIGATIONS & ENFORCEMENT                                                                        ,Staff Payment,BA0000308526,4.35,
BEIS,The Insolvency Service,09/10/2017,Travel and Subsistence,INVESTIGATIONS & ENFORCEMENT                                                                        ,Staff Payment,BA0000308526,4.70,
BEIS,The Insolvency Service,09/10/2017,Travel and Subsistence,INVESTIGATIONS & ENFORCEMENT                                                                        ,Staff Payment,BA0000308526,5.00,
BEIS,The Insolvency Service,09/10/2017,Travel and Subsistence,INVESTIGATIONS & ENFORCEMENT                                                                        ,Staff Payment,BA0000308526,6.10,
BEIS,The Insolvency Service,09/10/2017,Travel and Subsistence,OFFICIAL RECEIVER SERVICES                                                                          ,Staff Payment,BA0000308526,1.64,
BEIS,The Insolvency Service,09/10/2017,Travel and Subsistence,OFFICIAL RECEIVER SERVICES                                                                          ,Staff Payment,BA0000308526,2.80,
BEIS,The Insolvency Service,09/10/2017,Travel and Subsistence,OFFICIAL RECEIVER SERVICES                                                                          ,Staff Payment,BA0000308526,3.20,
BEIS,The Insolvency Service,09/10/2017,Travel and Subsistence,OFFICIAL RECEIVER SERVICES                                                                          ,Staff Payment,BA0000308526,3.39,
BEIS,The Insolvency Service,09/10/2017,Travel and Subsistence,OFFICIAL RECEIVER SERVICES                                                                          ,Staff Payment,BA0000308526,15.00,
BEIS,The Insolvency Service,09/10/2017,Travel and Subsistence,OFFICIAL RECEIVER SERVICES                                                                          ,Staff Payment,BA0000308526,2.50,
BEIS,The Insolvency Service,09/10/2017,Travel and Subsistence,OFFICIAL RECEIVER SERVICES                                                                          ,Staff Payment,BA0000308526,3.00,
BEIS,The Insolvency Service,09/10/2017,Travel and Subsistence,OFFICIAL RECEIVER SERVICES                                                                          ,Staff Payment,BA0000308526,11.50,                      
BEIS,The Insolvency Service,09/10/2017,Travel and Subsistence,OFFICIAL RECEIVER SERVICES                                                                          ,Staff Payment,BA0000308526,10.20,
BEIS,The Insolvency Service,09/10/2017,Travel and Subsistence,OFFICIAL RECEIVER SERVICES                                                                          ,Staff Payment,BA0000308526,5.00,                      
BEIS,The Insolvency Service,09/10/2017,Travel and Subsistence,PEOPLE & CAPABILITY                                                                                 ,Staff Payment,BA0000308526,3.98,
BEIS,The Insolvency Service,09/10/2017,Travel and Subsistence,PEOPLE & CAPABILITY                                                                                 ,Staff Payment,BA0000308526,4.75,
BEIS,The Insolvency Service,09/10/2017,Travel and Subsistence,PEOPLE & CAPABILITY                                                                                 ,Staff Payment,BA0000308526,5.00,
BEIS,The Insolvency Service,09/10/2017,Travel and Subsistence,PEOPLE & CAPABILITY                                                                                 ,Staff Payment,BA0000308526,15.00,
BEIS,The Insolvency Service,09/10/2017,Travel and Subsistence,PEOPLE & CAPABILITY                                                                                 ,Staff Payment,BA0000308526,4.65,
BEIS,The Insolvency Service,09/10/2017,Travel and Subsistence,PEOPLE & CAPABILITY                                                                                 ,Staff Payment,BA0000308526,4.75,
BEIS,The Insolvency Service,09/10/2017,Travel and Subsistence,PEOPLE & CAPABILITY                                                                                 ,Staff Payment,BA0000308526,15.50,
BEIS,The Insolvency Service,09/10/2017,Travel and Subsistence,PEOPLE & CAPABILITY                                                                                 ,Staff Payment,BA0000308526,18.00,
BEIS,The Insolvency Service,09/10/2017,Travel and Subsistence,PEOPLE & CAPABILITY                                                                                 ,Staff Payment,BA0000308526,18.00,
BEIS,The Insolvency Service,09/10/2017,Travel and Subsistence,PEOPLE & CAPABILITY                                                                                 ,Staff Payment,BA0000308526,4.15,
BEIS,The Insolvency Service,09/10/2017,Travel and Subsistence,PEOPLE & CAPABILITY                                                                                 ,Staff Payment,BA0000308526,5.00,
BEIS,The Insolvency Service,09/10/2017,Travel and Subsistence,PEOPLE & CAPABILITY                                                                                 ,Staff Payment,BA0000308526,12.00,
BEIS,The Insolvency Service,09/10/2017,Travel and Subsistence,PEOPLE & CAPABILITY                                                                                 ,Staff Payment,BA0000308526,18.00,
BEIS,The Insolvency Service,09/10/2017,Travel and Subsistence,PEOPLE & CAPABILITY                                                                                 ,Staff Payment,BA0000308526,5.00,
BEIS,The Insolvency Service,09/10/2017,Travel and Subsistence,PEOPLE & CAPABILITY                                                                                 ,Staff Payment,BA0000308526,5.00,
BEIS,The Insolvency Service,09/10/2017,Travel and Subsistence,PEOPLE & CAPABILITY                                                                                 ,Staff Payment,BA0000308526,12.50,
BEIS,The Insolvency Service,09/10/2017,Travel and Subsistence,PEOPLE & CAPABILITY                                                                                 ,Staff Payment,BA0000308526,5.00,
BEIS,The Insolvency Service,09/10/2017,Travel and Subsistence,PEOPLE & CAPABILITY                                                                                 ,Staff Payment,BA0000308526,11.70,
BEIS,The Insolvency Service,10/10/2017,Investigation and Enforcement Costs,CRIMINAL ENFORCEMENT                                                                                ,18 RED LION COURT CHAMBERS                                  ,BA0000308538,1236.00,766793665
BEIS,The Insolvency Service,10/10/2017,Investigation and Enforcement Costs,CRIMINAL ENFORCEMENT                                                                                ,Appropriate Adult Service                                   ,BA0000308540,361.68,861446224
BEIS,The Insolvency Service,10/10/2017,Accommodation,BUSINESS SERVICES DIRECTORATE                                                                       ,Staff Payment,BA0000308545,2.00,
BEIS,The Insolvency Service,10/10/2017,Accommodation,CRIMINAL ENFORCEMENT                                                                                ,Restore PLC,BA0000308537,39.56,8438630
BEIS,The Insolvency Service,10/10/2017,Agency Workers,INFORMATION TECHNOLOGY                                                                              ,CAPITA BUSINESS SERVICES LTD,BA0000308544,4994.80,618184140
BEIS,The Insolvency Service,10/10/2017,Employee Related Costs,CRIMINAL ENFORCEMENT                                                                                ,National Crime Agency                                       ,BA0000308539,134.00,888849824
BEIS,The Insolvency Service,10/10/2017,Employee Related Costs,CRIMINAL ENFORCEMENT                                                                                ,Staff Payment,BA0000308545,10.00,                      
BEIS,The Insolvency Service,10/10/2017,Employee Related Costs,CRIMINAL ENFORCEMENT                                                                                ,Staff Payment,BA0000308545,12.00,                      
BEIS,The Insolvency Service,10/10/2017,Insolvency Case Related Costs,OFFICIAL RECEIVER SERVICES                                                                          ,COMPANIES HOUSE,BA0000308532,7.00,GD255
BEIS,The Insolvency Service,10/10/2017,Insolvency Case Related Costs,OFFICIAL RECEIVER SERVICES                                                                          ,COMPANIES HOUSE,BA0000308541,4.00,GD255
BEIS,The Insolvency Service,10/10/2017,Insolvency Case Related Costs,OFFICIAL RECEIVER SERVICES                                                                          ,COMPANIES HOUSE,BA0000308542,4.00,GD255
BEIS,The Insolvency Service,10/10/2017,Insolvency Case Related Costs,OFFICIAL RECEIVER SERVICES                                                                          ,INSOLVENCY SERVICE,BA0000308530,180.00,
BEIS,The Insolvency Service,10/10/2017,Investigation and Enforcement Costs,INVESTIGATIONS & ENFORCEMENT                                                                        ,GOVERNMENT LEGAL DEPARTMENT                                 ,BA0000308534,30.75,888823066
BEIS,The Insolvency Service,10/10/2017,Office Supplies and Services,BUSINESS SERVICES DIRECTORATE                                                                       ,BANNER BUSINESS SERVICES LTD                                ,BA0000308529,544.22,731860439
BEIS,The Insolvency Service,10/10/2017,Office Supplies and Services,CHIEF EXECUTIVE DIVISION                                                                            ,BANNER BUSINESS SERVICES LTD                                ,BA0000308529,63.62,731860439
BEIS,The Insolvency Service,10/10/2017,Office Supplies and Services,CRIMINAL ENFORCEMENT                                                                                ,BANNER BUSINESS SERVICES LTD                                ,BA0000308529,352.55,731860439
BEIS,The Insolvency Service,10/10/2017,Office Supplies and Services,CRIMINAL ENFORCEMENT                                                                                ,Staff Payment,BA0000308545,1.30,                      
BEIS,The Insolvency Service,10/10/2017,Office Supplies and Services,CRIMINAL ENFORCEMENT                                                                                ,Staff Payment,BA0000308545,5.00,                      
BEIS,The Insolvency Service,10/10/2017,Office Supplies and Services,FINANCE AND COMMERCIAL                                                                              ,BANNER BUSINESS SERVICES LTD                                ,BA0000308529,1092.18,731860439
BEIS,The Insolvency Service,10/10/2017,Office Supplies and Services,INFORMATION TECHNOLOGY                                                                              ,BANNER BUSINESS SERVICES LTD                                ,BA0000308529,705.71,731860439
BEIS,The Insolvency Service,10/10/2017,Office Supplies and Services,INVESTIGATIONS & ENFORCEMENT                                                                        ,BANNER BUSINESS SERVICES LTD                                ,BA0000308529,110.81,731860439
BEIS,The Insolvency Service,10/10/2017,Office Supplies and Services,OFFICIAL RECEIVER SERVICES                                                                          ,BANNER BUSINESS SERVICES LTD                                ,BA0000308529,87.28,731860439
BEIS,The Insolvency Service,10/10/2017,Office Supplies and Services,OFFICIAL RECEIVER SERVICES                                                                          ,BANNER BUSINESS SERVICES LTD                                ,BA0000308529,102.89,731860439
BEIS,The Insolvency Service,10/10/2017,Office Supplies and Services,OFFICIAL RECEIVER SERVICES                                                                          ,BANNER BUSINESS SERVICES LTD                                ,BA0000308529,109.87,731860439
BEIS,The Insolvency Service,10/10/2017,Office Supplies and Services,OFFICIAL RECEIVER SERVICES                                                                          ,BANNER BUSINESS SERVICES LTD                                ,BA0000308529,132.31,731860439
BEIS,The Insolvency Service,10/10/2017,Office Supplies and Services,OFFICIAL RECEIVER SERVICES                                                                          ,BANNER BUSINESS SERVICES LTD                                ,BA0000308529,144.36,731860439
BEIS,The Insolvency Service,10/10/2017,Office Supplies and Services,OFFICIAL RECEIVER SERVICES                                                                          ,BANNER BUSINESS SERVICES LTD                                ,BA0000308529,165.56,731860439
BEIS,The Insolvency Service,10/10/2017,Office Supplies and Services,OFFICIAL RECEIVER SERVICES                                                                          ,BANNER BUSINESS SERVICES LTD                                ,BA0000308529,185.28,731860439
BEIS,The Insolvency Service,10/10/2017,Office Supplies and Services,OFFICIAL RECEIVER SERVICES                                                                          ,BANNER BUSINESS SERVICES LTD                                ,BA0000308529,218.76,731860439
BEIS,The Insolvency Service,10/10/2017,Office Supplies and Services,OFFICIAL RECEIVER SERVICES                                                                          ,BANNER BUSINESS SERVICES LTD                                ,BA0000308529,228.60,731860439
BEIS,The Insolvency Service,10/10/2017,Office Supplies and Services,OFFICIAL RECEIVER SERVICES                                                                          ,BANNER BUSINESS SERVICES LTD                                ,BA0000308529,276.58,731860439
BEIS,The Insolvency Service,10/10/2017,Office Supplies and Services,OFFICIAL RECEIVER SERVICES                                                                          ,BANNER BUSINESS SERVICES LTD                                ,BA0000308529,277.29,731860439
BEIS,The Insolvency Service,10/10/2017,Office Supplies and Services,OFFICIAL RECEIVER SERVICES                                                                          ,BANNER BUSINESS SERVICES LTD                                ,BA0000308529,286.26,731860439
BEIS,The Insolvency Service,10/10/2017,Office Supplies and Services,OFFICIAL RECEIVER SERVICES                                                                          ,BANNER BUSINESS SERVICES LTD                                ,BA0000308529,304.69,731860439
BEIS,The Insolvency Service,10/10/2017,Office Supplies and Services,OFFICIAL RECEIVER SERVICES                                                                          ,BANNER BUSINESS SERVICES LTD                                ,BA0000308529,337.01,731860439
BEIS,The Insolvency Service,10/10/2017,Office Supplies and Services,OFFICIAL RECEIVER SERVICES                                                                          ,BANNER BUSINESS SERVICES LTD                                ,BA0000308529,540.42,731860439
BEIS,The Insolvency Service,10/10/2017,Office Supplies and Services,OFFICIAL RECEIVER SERVICES                                                                          ,BANNER BUSINESS SERVICES LTD                                ,BA0000308529,586.89,731860439
BEIS,The Insolvency Service,10/10/2017,Office Supplies and Services,PEOPLE & CAPABILITY                                                                                 ,BANNER BUSINESS SERVICES LTD                                ,BA0000308529,47.54,731860439
BEIS,The Insolvency Service,10/10/2017,Postage,BUSINESS SERVICES DIRECTORATE                                                                       ,NATIONAL RECORD OF SCOTLAND,BA0000308536,1427.35,888842061
BEIS,The Insolvency Service,10/10/2017,Postage,INFORMATION TECHNOLOGY                                                                              ,DX NETWORK SERVICES LTD,BA0000308528,185.13,849741385
BEIS,The Insolvency Service,10/10/2017,Postage,INFORMATION TECHNOLOGY                                                                              ,DX NETWORK SERVICES LTD,BA0000308528,292.89,849741385
BEIS,The Insolvency Service,10/10/2017,Postage,OFFICIAL RECEIVER SERVICES                                                                          ,DX NETWORK SERVICES LTD,BA0000308528,100.04,849741385
BEIS,The Insolvency Service,10/10/2017,Postage,OFFICIAL RECEIVER SERVICES                                                                          ,DX NETWORK SERVICES LTD,BA0000308528,122.93,849741385
BEIS,The Insolvency Service,10/10/2017,Postage,OFFICIAL RECEIVER SERVICES                                                                          ,DX NETWORK SERVICES LTD,BA0000308528,124.19,849741385
BEIS,The Insolvency Service,10/10/2017,Postage,OFFICIAL RECEIVER SERVICES                                                                          ,DX NETWORK SERVICES LTD,BA0000308528,153.98,849741385
BEIS,The Insolvency Service,10/10/2017,Postage,OFFICIAL RECEIVER SERVICES                                                                          ,DX NETWORK SERVICES LTD,BA0000308528,170.36,849741385
BEIS,The Insolvency Service,10/10/2017,Postage,OFFICIAL RECEIVER SERVICES                                                                          ,DX NETWORK SERVICES LTD,BA0000308528,229.15,849741385
BEIS,The Insolvency Service,10/10/2017,Postage,OFFICIAL RECEIVER SERVICES                                                                          ,DX NETWORK SERVICES LTD,BA0000308528,247.71,849741385
BEIS,The Insolvency Service,10/10/2017,Postage,OFFICIAL RECEIVER SERVICES                                                                          ,DX NETWORK SERVICES LTD,BA0000308528,249.72,849741385
BEIS,The Insolvency Service,10/10/2017,Postage,OFFICIAL RECEIVER SERVICES                                                                          ,DX NETWORK SERVICES LTD,BA0000308528,252.71,849741385
BEIS,The Insolvency Service,10/10/2017,Postage,OFFICIAL RECEIVER SERVICES                                                                          ,DX NETWORK SERVICES LTD,BA0000308528,275.30,849741385
BEIS,The Insolvency Service,10/10/2017,Postage,OFFICIAL RECEIVER SERVICES                                                                          ,DX NETWORK SERVICES LTD,BA0000308528,279.86,849741385
BEIS,The Insolvency Service,10/10/2017,Postage,OFFICIAL RECEIVER SERVICES                                                                          ,DX NETWORK SERVICES LTD,BA0000308528,356.54,849741385
BEIS,The Insolvency Service,10/10/2017,Postage,OFFICIAL RECEIVER SERVICES                                                                          ,DX NETWORK SERVICES LTD,BA0000308528,426.25,849741385
BEIS,The Insolvency Service,10/10/2017,Postage,OFFICIAL RECEIVER SERVICES                                                                          ,DX NETWORK SERVICES LTD,BA0000308528,482.92,849741385
BEIS,The Insolvency Service,10/10/2017,Postage,OFFICIAL RECEIVER SERVICES                                                                          ,DX NETWORK SERVICES LTD,BA0000308528,808.69,849741385
BEIS,The Insolvency Service,10/10/2017,Postage,OFFICIAL RECEIVER SERVICES                                                                          ,DX NETWORK SERVICES LTD,BA0000308528,990.99,849741385
BEIS,The Insolvency Service,10/10/2017,Training Costs,FINANCE AND COMMERCIAL                                                                              ,QA LIMITED,BA0000308512,386.50,
BEIS,The Insolvency Service,10/10/2017,Training Costs,FINANCE AND COMMERCIAL                                                                              ,QA LIMITED,BA0000308522,-386.50,
BEIS,The Insolvency Service,10/10/2017,Training Costs,OFFICIAL RECEIVER SERVICES                                                                          ,KPMG LLP                                                    ,BA0000308533,2500.00,                      
BEIS,The Insolvency Service,10/10/2017,Training Costs,OFFICIAL RECEIVER SERVICES                                                                          ,KPMG LLP                                                    ,BA0000308535,2500.00,                      
BEIS,The Insolvency Service,10/10/2017,Training Costs,PEOPLE & CAPABILITY                                                                                 ,CAPITA BUSINESS SERVICES LTD,BA0000308531,8719.76,618184140
BEIS,The Insolvency Service,10/10/2017,Travel and Subsistence,BUSINESS SERVICES DIRECTORATE                                                                       ,Staff Payment,BA0000308545,1.00,
BEIS,The Insolvency Service,10/10/2017,Travel and Subsistence,BUSINESS SERVICES DIRECTORATE                                                                       ,Staff Payment,BA0000308545,1.60,
BEIS,The Insolvency Service,10/10/2017,Travel and Subsistence,BUSINESS SERVICES DIRECTORATE                                                                       ,Staff Payment,BA0000308545,3.00,
BEIS,The Insolvency Service,10/10/2017,Travel and Subsistence,BUSINESS SERVICES DIRECTORATE                                                                       ,Staff Payment,BA0000308545,3.10,
BEIS,The Insolvency Service,10/10/2017,Travel and Subsistence,BUSINESS SERVICES DIRECTORATE                                                                       ,Staff Payment,BA0000308545,3.70,
BEIS,The Insolvency Service,10/10/2017,Travel and Subsistence,BUSINESS SERVICES DIRECTORATE                                                                       ,Staff Payment,BA0000308545,3.95,
BEIS,The Insolvency Service,10/10/2017,Travel and Subsistence,BUSINESS SERVICES DIRECTORATE                                                                       ,Staff Payment,BA0000308545,4.00,
BEIS,The Insolvency Service,10/10/2017,Travel and Subsistence,BUSINESS SERVICES DIRECTORATE                                                                       ,Staff Payment,BA0000308545,4.70,
BEIS,The Insolvency Service,10/10/2017,Travel and Subsistence,BUSINESS SERVICES DIRECTORATE                                                                       ,Staff Payment,BA0000308545,4.80,
BEIS,The Insolvency Service,10/10/2017,Travel and Subsistence,BUSINESS SERVICES DIRECTORATE                                                                       ,Staff Payment,BA0000308545,5.00,
BEIS,The Insolvency Service,10/10/2017,Travel and Subsistence,BUSINESS SERVICES DIRECTORATE                                                                       ,Staff Payment,BA0000308545,5.00,
BEIS,The Insolvency Service,10/10/2017,Travel and Subsistence,BUSINESS SERVICES DIRECTORATE                                                                       ,Staff Payment,BA0000308545,7.80,
BEIS,The Insolvency Service,10/10/2017,Travel and Subsistence,BUSINESS SERVICES DIRECTORATE                                                                       ,Staff Payment,BA0000308545,10.50,
BEIS,The Insolvency Service,10/10/2017,Travel and Subsistence,BUSINESS SERVICES DIRECTORATE                                                                       ,Staff Payment,BA0000308545,12.85,
BEIS,The Insolvency Service,10/10/2017,Travel and Subsistence,BUSINESS SERVICES DIRECTORATE                                                                       ,Staff Payment,BA0000308545,14.85,
BEIS,The Insolvency Service,10/10/2017,Travel and Subsistence,BUSINESS SERVICES DIRECTORATE                                                                       ,Staff Payment,BA0000308545,15.00,
BEIS,The Insolvency Service,10/10/2017,Travel and Subsistence,BUSINESS SERVICES DIRECTORATE                                                                       ,Staff Payment,BA0000308545,17.90,
BEIS,The Insolvency Service,10/10/2017,Travel and Subsistence,BUSINESS SERVICES DIRECTORATE                                                                       ,Staff Payment,BA0000308545,94.05,
BEIS,The Insolvency Service,10/10/2017,Travel and Subsistence,BUSINESS SERVICES DIRECTORATE                                                                       ,Staff Payment,BA0000308545,102.15,
BEIS,The Insolvency Service,10/10/2017,Travel and Subsistence,CRIMINAL ENFORCEMENT                                                                                ,Staff Payment,BA0000308545,1.00,                      
BEIS,The Insolvency Service,10/10/2017,Travel and Subsistence,CRIMINAL ENFORCEMENT                                                                                ,Staff Payment,BA0000308545,2.70,                      
BEIS,The Insolvency Service,10/10/2017,Travel and Subsistence,CRIMINAL ENFORCEMENT                                                                                ,Staff Payment,BA0000308545,4.50,                      
BEIS,The Insolvency Service,10/10/2017,Travel and Subsistence,CRIMINAL ENFORCEMENT                                                                                ,Staff Payment,BA0000308545,5.00,                      
BEIS,The Insolvency Service,10/10/2017,Travel and Subsistence,CRIMINAL ENFORCEMENT                                                                                ,Staff Payment,BA0000308545,13.50,                      
BEIS,The Insolvency Service,10/10/2017,Travel and Subsistence,CRIMINAL ENFORCEMENT                                                                                ,Staff Payment,BA0000308545,67.05,                      
BEIS,The Insolvency Service,10/10/2017,Travel and Subsistence,CRIMINAL ENFORCEMENT                                                                                ,Staff Payment,BA0000308545,27.00,                      
BEIS,The Insolvency Service,10/10/2017,Travel and Subsistence,CRIMINAL ENFORCEMENT                                                                                ,Staff Payment,BA0000308545,39.60,                      
BEIS,The Insolvency Service,10/10/2017,Travel and Subsistence,CRIMINAL ENFORCEMENT                                                                                ,Staff Payment,BA0000308545,5.00,                      
BEIS,The Insolvency Service,10/10/2017,Travel and Subsistence,CRIMINAL ENFORCEMENT                                                                                ,Staff Payment,BA0000308545,14.95,                      
BEIS,The Insolvency Service,10/10/2017,Travel and Subsistence,CRIMINAL ENFORCEMENT                                                                                ,Staff Payment,BA0000308545,15.00,                      
BEIS,The Insolvency Service,10/10/2017,Travel and Subsistence,CRIMINAL ENFORCEMENT                                                                                ,Staff Payment,BA0000308545,18.45,                      
BEIS,The Insolvency Service,10/10/2017,Travel and Subsistence,CRIMINAL ENFORCEMENT                                                                                ,Staff Payment,BA0000308545,27.00,                      
BEIS,The Insolvency Service,10/10/2017,Travel and Subsistence,CRIMINAL ENFORCEMENT                                                                                ,Staff Payment,BA0000308545,37.80,                      
BEIS,The Insolvency Service,10/10/2017,Travel and Subsistence,CRIMINAL ENFORCEMENT                                                                                ,Staff Payment,BA0000308545,54.45,                      
BEIS,The Insolvency Service,10/10/2017,Travel and Subsistence,CRIMINAL ENFORCEMENT                                                                                ,Staff Payment,BA0000308545,68.85,                      
BEIS,The Insolvency Service,10/10/2017,Travel and Subsistence,CRIMINAL ENFORCEMENT                                                                                ,Staff Payment,BA0000308545,73.35,                      
BEIS,The Insolvency Service,10/10/2017,Travel and Subsistence,CRIMINAL ENFORCEMENT                                                                                ,Staff Payment,BA0000308545,113.85,                      
BEIS,The Insolvency Service,10/10/2017,Travel and Subsistence,FINANCE AND COMMERCIAL                                                                              ,Staff Payment,BA0000308545,1.00,
BEIS,The Insolvency Service,10/10/2017,Travel and Subsistence,FINANCE AND COMMERCIAL                                                                              ,Staff Payment,BA0000308545,1.50,
BEIS,The Insolvency Service,10/10/2017,Travel and Subsistence,FINANCE AND COMMERCIAL                                                                              ,Staff Payment,BA0000308545,2.00,
BEIS,The Insolvency Service,10/10/2017,Travel and Subsistence,FINANCE AND COMMERCIAL                                                                              ,Staff Payment,BA0000308545,3.48,
BEIS,The Insolvency Service,10/10/2017,Travel and Subsistence,FINANCE AND COMMERCIAL                                                                              ,Staff Payment,BA0000308545,4.00,
BEIS,The Insolvency Service,10/10/2017,Travel and Subsistence,FINANCE AND COMMERCIAL                                                                              ,Staff Payment,BA0000308545,5.00,
BEIS,The Insolvency Service,10/10/2017,Travel and Subsistence,FINANCE AND COMMERCIAL                                                                              ,Staff Payment,BA0000308545,11.45,
BEIS,The Insolvency Service,10/10/2017,Travel and Subsistence,FINANCE AND COMMERCIAL,Staff Payment,BA0000308545,2.40,                      
BEIS,The Insolvency Service,10/10/2017,Travel and Subsistence,FINANCE AND COMMERCIAL,Staff Payment,BA0000308545,4.80,                      
BEIS,The Insolvency Service,10/10/2017,Travel and Subsistence,FINANCE AND COMMERCIAL,Staff Payment,BA0000308545,5.00,                      
BEIS,The Insolvency Service,10/10/2017,Travel and Subsistence,FINANCE AND COMMERCIAL,Staff Payment,BA0000308545,13.60,                      
BEIS,The Insolvency Service,10/10/2017,Travel and Subsistence,FINANCE AND COMMERCIAL                                                                              ,Staff Payment,BA0000308545,13.00,
BEIS,The Insolvency Service,10/10/2017,Travel and Subsistence,FINANCE AND COMMERCIAL                                                                              ,Staff Payment,BA0000308545,4.70,
BEIS,The Insolvency Service,10/10/2017,Travel and Subsistence,FINANCE AND COMMERCIAL                                                                              ,Staff Payment,BA0000308545,11.00,
BEIS,The Insolvency Service,10/10/2017,Travel and Subsistence,FINANCE AND COMMERCIAL                                                                              ,Staff Payment,BA0000308545,11.00,
BEIS,The Insolvency Service,10/10/2017,Travel and Subsistence,OFFICIAL RECEIVER SERVICES                                                                          ,Staff Payment,BA0000308545,7.70,
BEIS,The Insolvency Service,10/10/2017,Travel and Subsistence,OFFICIAL RECEIVER SERVICES                                                                          ,Staff Payment,BA0000308545,20.70,
BEIS,The Insolvency Service,10/10/2017,Travel and Subsistence,OFFICIAL RECEIVER SERVICES                                                                          ,Staff Payment,BA0000308545,2.40,
BEIS,The Insolvency Service,10/10/2017,Travel and Subsistence,OFFICIAL RECEIVER SERVICES                                                                          ,Staff Payment,BA0000308545,3.00,
BEIS,The Insolvency Service,10/10/2017,Travel and Subsistence,OFFICIAL RECEIVER SERVICES                                                                          ,Staff Payment,BA0000308545,4.99,
BEIS,The Insolvency Service,10/10/2017,Travel and Subsistence,OFFICIAL RECEIVER SERVICES                                                                          ,Staff Payment,BA0000308545,5.00,
BEIS,The Insolvency Service,10/10/2017,Travel and Subsistence,OFFICIAL RECEIVER SERVICES                                                                          ,Staff Payment,BA0000308545,5.00,                      
BEIS,The Insolvency Service,10/10/2017,Travel and Subsistence,OFFICIAL RECEIVER SERVICES                                                                          ,Staff Payment,BA0000308545,10.65,                      
BEIS,The Insolvency Service,10/10/2017,Travel and Subsistence,OFFICIAL RECEIVER SERVICES                                                                          ,Staff Payment,BA0000308545,16.00,                      
BEIS,The Insolvency Service,10/10/2017,Travel and Subsistence,OFFICIAL RECEIVER SERVICES                                                                          ,Staff Payment,BA0000308545,3.39,
BEIS,The Insolvency Service,10/10/2017,Travel and Subsistence,OFFICIAL RECEIVER SERVICES                                                                          ,Staff Payment,BA0000308545,6.00,
BEIS,The Insolvency Service,10/10/2017,Travel and Subsistence,OFFICIAL RECEIVER SERVICES                                                                          ,Staff Payment,BA0000308545,19.35,
BEIS,The Insolvency Service,10/10/2017,Travel and Subsistence,OFFICIAL RECEIVER SERVICES                                                                          ,Staff Payment,BA0000308545,40.50,
BEIS,The Insolvency Service,10/10/2017,Travel and Subsistence,OFFICIAL RECEIVER SERVICES                                                                          ,Staff Payment,BA0000308545,4.60,
BEIS,The Insolvency Service,10/10/2017,Travel and Subsistence,OFFICIAL RECEIVER SERVICES                                                                          ,Staff Payment,BA0000308545,12.00,
BEIS,The Insolvency Service,10/10/2017,Travel and Subsistence,OFFICIAL RECEIVER SERVICES                                                                          ,Staff Payment,BA0000308545,6.75,
BEIS,The Insolvency Service,10/10/2017,Travel and Subsistence,OFFICIAL RECEIVER SERVICES                                                                          ,Staff Payment,BA0000308545,4.45,
BEIS,The Insolvency Service,10/10/2017,Travel and Subsistence,OFFICIAL RECEIVER SERVICES                                                                          ,Staff Payment,BA0000308545,5.00,
BEIS,The Insolvency Service,10/10/2017,Travel and Subsistence,OFFICIAL RECEIVER SERVICES                                                                          ,Staff Payment,BA0000308545,7.50,
BEIS,The Insolvency Service,10/10/2017,Travel and Subsistence,OFFICIAL RECEIVER SERVICES                                                                          ,Staff Payment,BA0000308545,8.95,
BEIS,The Insolvency Service,10/10/2017,Travel and Subsistence,OFFICIAL RECEIVER SERVICES                                                                          ,Staff Payment,BA0000308545,3.00,
BEIS,The Insolvency Service,10/10/2017,Travel and Subsistence,OFFICIAL RECEIVER SERVICES                                                                          ,Staff Payment,BA0000308545,3.92,
BEIS,The Insolvency Service,10/10/2017,Travel and Subsistence,OFFICIAL RECEIVER SERVICES                                                                          ,Staff Payment,BA0000308545,4.80,
BEIS,The Insolvency Service,10/10/2017,Travel and Subsistence,OFFICIAL RECEIVER SERVICES                                                                          ,Staff Payment,BA0000308545,4.90,
BEIS,The Insolvency Service,10/10/2017,Travel and Subsistence,OFFICIAL RECEIVER SERVICES                                                                          ,Staff Payment,BA0000308545,5.00,
BEIS,The Insolvency Service,10/10/2017,Travel and Subsistence,OFFICIAL RECEIVER SERVICES                                                                          ,Staff Payment,BA0000308545,5.40,
BEIS,The Insolvency Service,10/10/2017,Travel and Subsistence,OFFICIAL RECEIVER SERVICES                                                                          ,Staff Payment,BA0000308545,6.35,
BEIS,The Insolvency Service,10/10/2017,Travel and Subsistence,OFFICIAL RECEIVER SERVICES                                                                          ,Staff Payment,BA0000308545,8.40,
BEIS,The Insolvency Service,10/10/2017,Travel and Subsistence,OFFICIAL RECEIVER SERVICES                                                                          ,Staff Payment,BA0000308545,8.90,
BEIS,The Insolvency Service,10/10/2017,Travel and Subsistence,OFFICIAL RECEIVER SERVICES                                                                          ,Staff Payment,BA0000308545,9.80,
BEIS,The Insolvency Service,10/10/2017,Travel and Subsistence,OFFICIAL RECEIVER SERVICES                                                                          ,Staff Payment,BA0000308545,15.00,
BEIS,The Insolvency Service,10/10/2017,Travel and Subsistence,OFFICIAL RECEIVER SERVICES                                                                          ,Staff Payment,BA0000308545,4.75,                      
BEIS,The Insolvency Service,10/10/2017,Travel and Subsistence,OFFICIAL RECEIVER SERVICES                                                                          ,Staff Payment,BA0000308545,5.00,                      
BEIS,The Insolvency Service,10/10/2017,Travel and Subsistence,OFFICIAL RECEIVER SERVICES                                                                          ,Staff Payment,BA0000308545,15.00,                      
BEIS,The Insolvency Service,10/10/2017,Travel and Subsistence,OFFICIAL RECEIVER SERVICES                                                                          ,Staff Payment,BA0000308545,4.00,
BEIS,The Insolvency Service,10/10/2017,Travel and Subsistence,OFFICIAL RECEIVER SERVICES                                                                          ,Staff Payment,BA0000308545,1.50,
BEIS,The Insolvency Service,10/10/2017,Travel and Subsistence,OFFICIAL RECEIVER SERVICES                                                                          ,Staff Payment,BA0000308545,5.00,
BEIS,The Insolvency Service,10/10/2017,Travel and Subsistence,OFFICIAL RECEIVER SERVICES                                                                          ,Staff Payment,BA0000308545,15.00,
BEIS,The Insolvency Service,10/10/2017,Travel and Subsistence,PEOPLE & CAPABILITY                                                                                 ,Staff Payment,BA0000308545,3.39,
BEIS,The Insolvency Service,10/10/2017,Travel and Subsistence,PEOPLE & CAPABILITY                                                                                 ,Staff Payment,BA0000308545,5.00,
BEIS,The Insolvency Service,10/10/2017,Travel and Subsistence,PEOPLE & CAPABILITY                                                                                 ,Staff Payment,BA0000308545,8.35,
BEIS,The Insolvency Service,10/10/2017,Travel and Subsistence,PEOPLE & CAPABILITY                                                                                 ,Staff Payment,BA0000308545,8.54,
BEIS,The Insolvency Service,10/10/2017,Travel and Subsistence,PEOPLE & CAPABILITY                                                                                 ,Staff Payment,BA0000308545,15.00,
BEIS,The Insolvency Service,11/10/2017,Accommodation,BUSINESS SERVICES DIRECTORATE                                                                       ,Staff Payment,BA0000308580,2.00,
BEIS,The Insolvency Service,11/10/2017,Computer and IT Systems,INFORMATION TECHNOLOGY                                                                              ,ATOS IT SERVICES UK LTD,BA0000308573,4460.00,
BEIS,The Insolvency Service,11/10/2017,Computer and IT Systems,INFORMATION TECHNOLOGY                                                                              ,ATOS IT SERVICES UK LTD,BA0000308574,195911.73,
BEIS,The Insolvency Service,11/10/2017,Computer and IT Systems,INFORMATION TECHNOLOGY                                                                              ,ATOS IT SERVICES UK LTD,BA0000308575,6260.84,
BEIS,The Insolvency Service,11/10/2017,Computer and IT Systems,INFORMATION TECHNOLOGY                                                                              ,ATOS IT SERVICES UK LTD,BA0000308576,20492.41,
BEIS,The Insolvency Service,11/10/2017,Computer and IT Systems,INFORMATION TECHNOLOGY                                                                              ,NINE TELECOM,BA0000308578,230.52,886132113
BEIS,The Insolvency Service,11/10/2017,Computer and IT Systems,INFORMATION TECHNOLOGY                                                                              ,THALES UK Ltd. (L&J),BA0000308572,70409.76,198955680
BEIS,The Insolvency Service,11/10/2017,Computer and IT Systems,INFORMATION TECHNOLOGY                                                                              ,VODAFONE - CABLE & WIRELESS COMMUNICATIONS,BA0000308569,17704.10,232303710
BEIS,The Insolvency Service,11/10/2017,Employee Related Costs,P&C - People Relations                                                                              ,HEALTH MANAGEMENT LTD,BA0000308560,3696.00,792250621
BEIS,The Insolvency Service,11/10/2017,Employee Related Costs,P&C - People Relations                                                                              ,HEALTH MANAGEMENT LTD,BA0000308561,2330.74,792250621
BEIS,The Insolvency Service,11/10/2017,Insolvency Case Related Costs,INVESTIGATIONS & ENFORCEMENT                                                                        ,Staff Payment,BA0000308580,7.00,
BEIS,The Insolvency Service,11/10/2017,Insolvency Case Related Costs,INVESTIGATIONS & ENFORCEMENT                                                                        ,Staff Payment,BA0000308580,7.00,
BEIS,The Insolvency Service,11/10/2017,Insolvency Case Related Costs,INVESTIGATIONS & ENFORCEMENT                                                                        ,Staff Payment,BA0000308580,7.00,
BEIS,The Insolvency Service,11/10/2017,Insolvency Case Related Costs,INVESTIGATIONS & ENFORCEMENT                                                                        ,Staff Payment,BA0000308580,7.00,
BEIS,The Insolvency Service,11/10/2017,Insolvency Case Related Costs,OFFICIAL RECEIVER SERVICES                                                                          ,COMPANIES HOUSE,BA0000308568,4.00,GD255
BEIS,The Insolvency Service,11/10/2017,Investigation and Enforcement Costs,OFFICIAL RECEIVER SERVICES                                                                          ,HMCTS,BA0000308543,308.00,
BEIS,The Insolvency Service,11/10/2017,Office Supplies and Services,BUSINESS SERVICES DIRECTORATE                                                                       ,Staff Payment,BA0000308580,0.90,
BEIS,The Insolvency Service,11/10/2017,Office Supplies and Services,BUSINESS SERVICES DIRECTORATE                                                                       ,Staff Payment,BA0000308580,5.15,
BEIS,The Insolvency Service,11/10/2017,Office Supplies and Services,CRIMINAL ENFORCEMENT                                                                                ,Staff Payment,BA0000308580,7.75,                      
BEIS,The Insolvency Service,11/10/2017,Office Supplies and Services,CRIMINAL ENFORCEMENT                                                                                ,Staff Payment,BA0000308580,5.00,                      
BEIS,The Insolvency Service,11/10/2017,Office Supplies and Services,INVESTIGATIONS & ENFORCEMENT                                                                        ,Staff Payment,BA0000308580,5.00,
BEIS,The Insolvency Service,11/10/2017,Office Supplies and Services,OFFICIAL RECEIVER SERVICES                                                                          ,Staff Payment,BA0000308551,21.61,
BEIS,The Insolvency Service,11/10/2017,Postage,OFFICIAL RECEIVER SERVICES                                                                          ,ROYAL MAIL GROUP LTD - RESPONSE SERVICES              ,BA0000308562,127.57,243170002
BEIS,The Insolvency Service,11/10/2017,Telecoms,BUSINESS SERVICES DIRECTORATE                                                                       ,BT CONFERENCING SERVICES,BA0000308556,2.87,245719348
BEIS,The Insolvency Service,11/10/2017,Telecoms,BUSINESS SERVICES DIRECTORATE                                                                       ,BT CONFERENCING SERVICES,BA0000308556,13.63,245719348
BEIS,The Insolvency Service,11/10/2017,Telecoms,BUSINESS SERVICES DIRECTORATE                                                                       ,BT CONFERENCING SERVICES,BA0000308556,18.42,245719348
BEIS,The Insolvency Service,11/10/2017,Telecoms,BUSINESS SERVICES DIRECTORATE                                                                       ,BT CONFERENCING SERVICES,BA0000308556,31.64,245719348
BEIS,The Insolvency Service,11/10/2017,Telecoms,BUSINESS SERVICES DIRECTORATE                                                                       ,BT CONFERENCING SERVICES,BA0000308556,45.92,245719348
BEIS,The Insolvency Service,11/10/2017,Telecoms,BUSINESS SERVICES DIRECTORATE                                                                       ,SYNTEC LTD                                                  ,BA0000308579,1125.61,245719348
BEIS,The Insolvency Service,11/10/2017,Telecoms,CHIEF EXECUTIVE DIVISION                                                                            ,BT CONFERENCING SERVICES,BA0000308556,18.54,245719348
BEIS,The Insolvency Service,11/10/2017,Telecoms,CUSTOMER AND COMMUNICATIONS                                                                         ,BT CONFERENCING SERVICES,BA0000308556,41.77,245719348
BEIS,The Insolvency Service,11/10/2017,Telecoms,CUSTOMER AND COMMUNICATIONS                                                                         ,BT CONFERENCING SERVICES,BA0000308556,69.41,245719348
BEIS,The Insolvency Service,11/10/2017,Telecoms,ESTATES,BT CONFERENCING SERVICES,BA0000308556,19.06,245719348
BEIS,The Insolvency Service,11/10/2017,Telecoms,EXTERNAL AFFAIRS                                                                                    ,BT CONFERENCING SERVICES,BA0000308556,2.70,245719348
BEIS,The Insolvency Service,11/10/2017,Telecoms,EXTERNAL AFFAIRS                                                                                    ,BT CONFERENCING SERVICES,BA0000308556,22.97,245719348
BEIS,The Insolvency Service,11/10/2017,Telecoms,EXTERNAL AFFAIRS                                                                                    ,BT CONFERENCING SERVICES,BA0000308556,34.78,245719348
BEIS,The Insolvency Service,11/10/2017,Telecoms,EXTERNAL AFFAIRS                                                                                    ,BT CONFERENCING SERVICES,BA0000308556,69.29,245719348
BEIS,The Insolvency Service,11/10/2017,Telecoms,FINANCE AND COMMERCIAL,BT CONFERENCING SERVICES,BA0000308556,0.16,245719348
BEIS,The Insolvency Service,11/10/2017,Telecoms,FINANCE AND COMMERCIAL,BT CONFERENCING SERVICES,BA0000308556,1.12,245719348
BEIS,The Insolvency Service,11/10/2017,Telecoms,FINANCE AND COMMERCIAL                                                                              ,BT CONFERENCING SERVICES,BA0000308556,2.22,245719348
BEIS,The Insolvency Service,11/10/2017,Telecoms,FINANCE AND COMMERCIAL,BT CONFERENCING SERVICES,BA0000308556,3.34,245719348
BEIS,The Insolvency Service,11/10/2017,Telecoms,FINANCE AND COMMERCIAL                                                                              ,BT CONFERENCING SERVICES,BA0000308556,5.12,245719348
BEIS,The Insolvency Service,11/10/2017,Telecoms,FINANCE AND COMMERCIAL                                                                              ,BT CONFERENCING SERVICES,BA0000308556,20.53,245719348
BEIS,The Insolvency Service,11/10/2017,Telecoms,FINANCE AND COMMERCIAL,BT CONFERENCING SERVICES,BA0000308556,34.50,245719348
BEIS,The Insolvency Service,11/10/2017,Telecoms,FINANCE AND COMMERCIAL                                                                              ,BT CONFERENCING SERVICES,BA0000308556,44.82,245719348
BEIS,The Insolvency Service,11/10/2017,Telecoms,FINANCE AND COMMERCIAL                                                                              ,BT CONFERENCING SERVICES,BA0000308556,46.06,245719348
BEIS,The Insolvency Service,11/10/2017,Telecoms,FINANCE AND COMMERCIAL                                                                              ,BT CONFERENCING SERVICES,BA0000308556,57.91,245719348
BEIS,The Insolvency Service,11/10/2017,Telecoms,FINANCE AND COMMERCIAL                                                                              ,BT CONFERENCING SERVICES,BA0000308556,59.66,245719348
BEIS,The Insolvency Service,11/10/2017,Telecoms,FINANCE AND COMMERCIAL                                                                              ,BT CONFERENCING SERVICES,BA0000308556,127.72,245719348
BEIS,The Insolvency Service,11/10/2017,Telecoms,INFORMATION TECHNOLOGY                                                                              ,BT CONFERENCING SERVICES,BA0000308556,10.57,245719348
BEIS,The Insolvency Service,11/10/2017,Telecoms,INFORMATION TECHNOLOGY                                                                              ,BT CONFERENCING SERVICES,BA0000308556,78.42,245719348
BEIS,The Insolvency Service,11/10/2017,Telecoms,INFORMATION TECHNOLOGY                                                                              ,BT CONFERENCING SERVICES,BA0000308556,118.66,245719348
BEIS,The Insolvency Service,11/10/2017,Telecoms,INFORMATION TECHNOLOGY                                                                              ,BT CONFERENCING SERVICES,BA0000308556,389.29,245719348
BEIS,The Insolvency Service,11/10/2017,Telecoms,INVESTIGATIONS & ENFORCEMENT                                                                        ,BT CONFERENCING SERVICES,BA0000308556,13.73,245719348
BEIS,The Insolvency Service,11/10/2017,Telecoms,INVESTIGATIONS & ENFORCEMENT                                                                        ,BT CONFERENCING SERVICES,BA0000308556,15.70,245719348
BEIS,The Insolvency Service,11/10/2017,Telecoms,INVESTIGATIONS & ENFORCEMENT                                                                        ,BT CONFERENCING SERVICES,BA0000308556,23.41,245719348
BEIS,The Insolvency Service,11/10/2017,Telecoms,INVESTIGATIONS & ENFORCEMENT                                                                        ,BT CONFERENCING SERVICES,BA0000308556,48.25,245719348
BEIS,The Insolvency Service,11/10/2017,Telecoms,INVESTIGATIONS & ENFORCEMENT                                                                        ,BT CONFERENCING SERVICES,BA0000308556,70.68,245719348
BEIS,The Insolvency Service,11/10/2017,Telecoms,INVESTIGATIONS & ENFORCEMENT                                                                        ,BT CONFERENCING SERVICES,BA0000308556,85.68,245719348
BEIS,The Insolvency Service,11/10/2017,Telecoms,OFFICIAL RECEIVER SERVICES                                                                          ,BT CONFERENCING SERVICES,BA0000308556,0.56,245719348
BEIS,The Insolvency Service,11/10/2017,Telecoms,OFFICIAL RECEIVER SERVICES                                                                          ,BT CONFERENCING SERVICES,BA0000308556,1.34,245719348
BEIS,The Insolvency Service,11/10/2017,Telecoms,OFFICIAL RECEIVER SERVICES                                                                          ,BT CONFERENCING SERVICES,BA0000308556,1.49,245719348
BEIS,The Insolvency Service,11/10/2017,Telecoms,OFFICIAL RECEIVER SERVICES                                                                          ,BT CONFERENCING SERVICES,BA0000308556,2.64,245719348
BEIS,The Insolvency Service,11/10/2017,Telecoms,OFFICIAL RECEIVER SERVICES                                                                          ,BT CONFERENCING SERVICES,BA0000308556,6.28,245719348
BEIS,The Insolvency Service,11/10/2017,Telecoms,OFFICIAL RECEIVER SERVICES                                                                          ,BT CONFERENCING SERVICES,BA0000308556,7.38,245719348
BEIS,The Insolvency Service,11/10/2017,Telecoms,OFFICIAL RECEIVER SERVICES                                                                          ,BT CONFERENCING SERVICES,BA0000308556,9.49,245719348
BEIS,The Insolvency Service,11/10/2017,Telecoms,OFFICIAL RECEIVER SERVICES                                                                          ,BT CONFERENCING SERVICES,BA0000308556,10.88,245719348
BEIS,The Insolvency Service,11/10/2017,Telecoms,OFFICIAL RECEIVER SERVICES                                                                          ,BT CONFERENCING SERVICES,BA0000308556,11.35,245719348
BEIS,The Insolvency Service,11/10/2017,Telecoms,OFFICIAL RECEIVER SERVICES                                                                          ,BT CONFERENCING SERVICES,BA0000308556,11.45,245719348
BEIS,The Insolvency Service,11/10/2017,Telecoms,OFFICIAL RECEIVER SERVICES                                                                          ,BT CONFERENCING SERVICES,BA0000308556,11.53,245719348
BEIS,The Insolvency Service,11/10/2017,Telecoms,OFFICIAL RECEIVER SERVICES                                                                          ,BT CONFERENCING SERVICES,BA0000308556,18.22,245719348
BEIS,The Insolvency Service,11/10/2017,Telecoms,OFFICIAL RECEIVER SERVICES                                                                          ,BT CONFERENCING SERVICES,BA0000308556,20.77,245719348
BEIS,The Insolvency Service,11/10/2017,Telecoms,OFFICIAL RECEIVER SERVICES                                                                          ,BT CONFERENCING SERVICES,BA0000308556,24.00,245719348
BEIS,The Insolvency Service,11/10/2017,Telecoms,OFFICIAL RECEIVER SERVICES                                                                          ,BT CONFERENCING SERVICES,BA0000308556,24.72,245719348
BEIS,The Insolvency Service,11/10/2017,Telecoms,OFFICIAL RECEIVER SERVICES                                                                          ,BT CONFERENCING SERVICES,BA0000308556,27.34,245719348
BEIS,The Insolvency Service,11/10/2017,Telecoms,OFFICIAL RECEIVER SERVICES                                                                          ,BT CONFERENCING SERVICES,BA0000308556,29.05,245719348
BEIS,The Insolvency Service,11/10/2017,Telecoms,OFFICIAL RECEIVER SERVICES                                                                          ,BT CONFERENCING SERVICES,BA0000308556,34.79,245719348
BEIS,The Insolvency Service,11/10/2017,Telecoms,OFFICIAL RECEIVER SERVICES                                                                          ,BT CONFERENCING SERVICES,BA0000308556,39.68,245719348
BEIS,The Insolvency Service,11/10/2017,Telecoms,OFFICIAL RECEIVER SERVICES                                                                          ,BT CONFERENCING SERVICES,BA0000308556,49.46,245719348
BEIS,The Insolvency Service,11/10/2017,Telecoms,OFFICIAL RECEIVER SERVICES                                                                          ,BT CONFERENCING SERVICES,BA0000308556,69.05,245719348
BEIS,The Insolvency Service,11/10/2017,Telecoms,OFFICIAL RECEIVER SERVICES                                                                          ,BT CONFERENCING SERVICES,BA0000308556,74.38,245719348
BEIS,The Insolvency Service,11/10/2017,Telecoms,P&C - People Relations                                                                              ,BT CONFERENCING SERVICES,BA0000308556,114.07,245719348
BEIS,The Insolvency Service,11/10/2017,Telecoms,PEOPLE & CAPABILITY                                                                                 ,BT CONFERENCING SERVICES,BA0000308556,12.30,245719348
BEIS,The Insolvency Service,11/10/2017,Telecoms,PEOPLE & CAPABILITY                                                                                 ,BT CONFERENCING SERVICES,BA0000308556,98.98,245719348
BEIS,The Insolvency Service,11/10/2017,Telecoms,PEOPLE & CAPABILITY                                                                                 ,BT CONFERENCING SERVICES,BA0000308556,1044.01,245719348
BEIS,The Insolvency Service,11/10/2017,Training Costs,FINANCE AND COMMERCIAL,KAPLAN FINANCIAL,BA0000308570,519.00,
BEIS,The Insolvency Service,11/10/2017,Training Costs,INFORMATION TECHNOLOGY                                                                              ,CAPITA BUSINESS SERVICES LTD,BA0000308563,576.14,618184140
BEIS,The Insolvency Service,11/10/2017,Training Costs,INFORMATION TECHNOLOGY                                                                              ,CAPITA BUSINESS SERVICES LTD,BA0000308567,576.14,618184140
BEIS,The Insolvency Service,11/10/2017,Training Costs,INVESTIGATIONS & ENFORCEMENT                                                                        ,FIRST FORENSIC FORUM,BA0000308571,230.00,
BEIS,The Insolvency Service,11/10/2017,Travel and Subsistence,BUSINESS SERVICES DIRECTORATE                                                                       ,Staff Payment,BA0000308551,1.60,                      
BEIS,The Insolvency Service,11/10/2017,Travel and Subsistence,BUSINESS SERVICES DIRECTORATE                                                                       ,Staff Payment,BA0000308551,3.10,                      
BEIS,The Insolvency Service,11/10/2017,Travel and Subsistence,BUSINESS SERVICES DIRECTORATE                                                                       ,Staff Payment,BA0000308551,3.70,                      
BEIS,The Insolvency Service,11/10/2017,Travel and Subsistence,BUSINESS SERVICES DIRECTORATE                                                                       ,Staff Payment,BA0000308551,4.50,                      
BEIS,The Insolvency Service,11/10/2017,Travel and Subsistence,BUSINESS SERVICES DIRECTORATE                                                                       ,Staff Payment,BA0000308551,4.90,                      
BEIS,The Insolvency Service,11/10/2017,Travel and Subsistence,BUSINESS SERVICES DIRECTORATE                                                                       ,Staff Payment,BA0000308551,5.00,                      
BEIS,The Insolvency Service,11/10/2017,Travel and Subsistence,BUSINESS SERVICES DIRECTORATE                                                                       ,Staff Payment,BA0000308551,15.00,                      
BEIS,The Insolvency Service,11/10/2017,Travel and Subsistence,BUSINESS SERVICES DIRECTORATE                                                                       ,Staff Payment,BA0000308551,1.60,
BEIS,The Insolvency Service,11/10/2017,Travel and Subsistence,BUSINESS SERVICES DIRECTORATE                                                                       ,Staff Payment,BA0000308551,3.40,
BEIS,The Insolvency Service,11/10/2017,Travel and Subsistence,BUSINESS SERVICES DIRECTORATE                                                                       ,Staff Payment,BA0000308551,3.65,
BEIS,The Insolvency Service,11/10/2017,Travel and Subsistence,BUSINESS SERVICES DIRECTORATE                                                                       ,Staff Payment,BA0000308551,3.80,
BEIS,The Insolvency Service,11/10/2017,Travel and Subsistence,BUSINESS SERVICES DIRECTORATE                                                                       ,Staff Payment,BA0000308551,5.00,
BEIS,The Insolvency Service,11/10/2017,Travel and Subsistence,BUSINESS SERVICES DIRECTORATE                                                                       ,Staff Payment,BA0000308551,13.48,
BEIS,The Insolvency Service,11/10/2017,Travel and Subsistence,BUSINESS SERVICES DIRECTORATE                                                                       ,Staff Payment,BA0000308551,14.30,
BEIS,The Insolvency Service,11/10/2017,Travel and Subsistence,BUSINESS SERVICES DIRECTORATE                                                                       ,Staff Payment,BA0000308551,3.65,                      
BEIS,The Insolvency Service,11/10/2017,Travel and Subsistence,BUSINESS SERVICES DIRECTORATE                                                                       ,Staff Payment,BA0000308551,4.10,                      
BEIS,The Insolvency Service,11/10/2017,Travel and Subsistence,BUSINESS SERVICES DIRECTORATE                                                                       ,Staff Payment,BA0000308551,4.20,                      
BEIS,The Insolvency Service,11/10/2017,Travel and Subsistence,BUSINESS SERVICES DIRECTORATE                                                                       ,Staff Payment,BA0000308551,4.25,                      
BEIS,The Insolvency Service,11/10/2017,Travel and Subsistence,BUSINESS SERVICES DIRECTORATE                                                                       ,Staff Payment,BA0000308551,5.00,                      
BEIS,The Insolvency Service,11/10/2017,Travel and Subsistence,BUSINESS SERVICES DIRECTORATE                                                                       ,Staff Payment,BA0000308551,7.60,                      
BEIS,The Insolvency Service,11/10/2017,Travel and Subsistence,BUSINESS SERVICES DIRECTORATE                                                                       ,Staff Payment,BA0000308551,13.48,                      
BEIS,The Insolvency Service,11/10/2017,Travel and Subsistence,BUSINESS SERVICES DIRECTORATE                                                                       ,Staff Payment,BA0000308551,10.50,
BEIS,The Insolvency Service,11/10/2017,Travel and Subsistence,BUSINESS SERVICES DIRECTORATE                                                                       ,Staff Payment,BA0000308551,3.34,
BEIS,The Insolvency Service,11/10/2017,Travel and Subsistence,BUSINESS SERVICES DIRECTORATE                                                                       ,Staff Payment,BA0000308551,85.00,
BEIS,The Insolvency Service,11/10/2017,Travel and Subsistence,BUSINESS SERVICES DIRECTORATE                                                                       ,Staff Payment,BA0000308580,1.60,
BEIS,The Insolvency Service,11/10/2017,Travel and Subsistence,BUSINESS SERVICES DIRECTORATE                                                                       ,Staff Payment,BA0000308580,2.79,
BEIS,The Insolvency Service,11/10/2017,Travel and Subsistence,BUSINESS SERVICES DIRECTORATE                                                                       ,Staff Payment,BA0000308580,3.50,
BEIS,The Insolvency Service,11/10/2017,Travel and Subsistence,BUSINESS SERVICES DIRECTORATE                                                                       ,Staff Payment,BA0000308580,3.95,
BEIS,The Insolvency Service,11/10/2017,Travel and Subsistence,BUSINESS SERVICES DIRECTORATE                                                                       ,Staff Payment,BA0000308580,5.00,
BEIS,The Insolvency Service,11/10/2017,Travel and Subsistence,BUSINESS SERVICES DIRECTORATE                                                                       ,Staff Payment,BA0000308580,5.00,
BEIS,The Insolvency Service,11/10/2017,Travel and Subsistence,BUSINESS SERVICES DIRECTORATE                                                                       ,Staff Payment,BA0000308580,11.30,
BEIS,The Insolvency Service,11/10/2017,Travel and Subsistence,BUSINESS SERVICES DIRECTORATE                                                                       ,Staff Payment,BA0000308580,12.50,
BEIS,The Insolvency Service,11/10/2017,Travel and Subsistence,BUSINESS SERVICES DIRECTORATE                                                                       ,Staff Payment,BA0000308580,14.05,
BEIS,The Insolvency Service,11/10/2017,Travel and Subsistence,BUSINESS SERVICES DIRECTORATE                                                                       ,Staff Payment,BA0000308580,14.50,
BEIS,The Insolvency Service,11/10/2017,Travel and Subsistence,BUSINESS SERVICES DIRECTORATE                                                                       ,Staff Payment,BA0000308580,15.00,
BEIS,The Insolvency Service,11/10/2017,Travel and Subsistence,BUSINESS SERVICES DIRECTORATE                                                                       ,Staff Payment,BA0000308580,5.00,
BEIS,The Insolvency Service,11/10/2017,Travel and Subsistence,BUSINESS SERVICES DIRECTORATE                                                                       ,Staff Payment,BA0000308580,5.65,
BEIS,The Insolvency Service,11/10/2017,Travel and Subsistence,BUSINESS SERVICES DIRECTORATE                                                                       ,Staff Payment,BA0000308580,5.90,
BEIS,The Insolvency Service,11/10/2017,Travel and Subsistence,BUSINESS SERVICES DIRECTORATE                                                                       ,Staff Payment,BA0000308580,12.40,
BEIS,The Insolvency Service,11/10/2017,Travel and Subsistence,BUSINESS SERVICES DIRECTORATE                                                                       ,Staff Payment,BA0000308580,15.00,
BEIS,The Insolvency Service,11/10/2017,Travel and Subsistence,BUSINESS SERVICES DIRECTORATE                                                                       ,Staff Payment,BA0000308580,15.00,
BEIS,The Insolvency Service,11/10/2017,Travel and Subsistence,BUSINESS SERVICES DIRECTORATE                                                                       ,Staff Payment,BA0000308580,17.00,
BEIS,The Insolvency Service,11/10/2017,Travel and Subsistence,BUSINESS SERVICES DIRECTORATE                                                                       ,Staff Payment,BA0000308580,6.00,
BEIS,The Insolvency Service,11/10/2017,Travel and Subsistence,BUSINESS SERVICES DIRECTORATE                                                                       ,Staff Payment,BA0000308580,7.00,
BEIS,The Insolvency Service,11/10/2017,Travel and Subsistence,BUSINESS SERVICES DIRECTORATE                                                                       ,Staff Payment,BA0000308580,2.40,
BEIS,The Insolvency Service,11/10/2017,Travel and Subsistence,BUSINESS SERVICES DIRECTORATE                                                                       ,Staff Payment,BA0000308580,7.00,
BEIS,The Insolvency Service,11/10/2017,Travel and Subsistence,BUSINESS SERVICES DIRECTORATE                                                                       ,Staff Payment,BA0000308580,10.00,
BEIS,The Insolvency Service,11/10/2017,Travel and Subsistence,BUSINESS SERVICES DIRECTORATE                                                                       ,Staff Payment,BA0000308580,15.00,
BEIS,The Insolvency Service,11/10/2017,Travel and Subsistence,CRIMINAL ENFORCEMENT                                                                                ,Staff Payment,BA0000308580,5.00,                      
BEIS,The Insolvency Service,11/10/2017,Travel and Subsistence,CRIMINAL ENFORCEMENT                                                                                ,Staff Payment,BA0000308580,78.75,                      
BEIS,The Insolvency Service,11/10/2017,Travel and Subsistence,CRIMINAL ENFORCEMENT                                                                                ,Staff Payment,BA0000308580,102.60,                      
BEIS,The Insolvency Service,11/10/2017,Travel and Subsistence,CRIMINAL ENFORCEMENT                                                                                ,Staff Payment,BA0000308580,4.50,                      
BEIS,The Insolvency Service,11/10/2017,Travel and Subsistence,CRIMINAL ENFORCEMENT                                                                                ,Staff Payment,BA0000308580,4.60,                      
BEIS,The Insolvency Service,11/10/2017,Travel and Subsistence,CRIMINAL ENFORCEMENT                                                                                ,Staff Payment,BA0000308580,5.00,                      
BEIS,The Insolvency Service,11/10/2017,Travel and Subsistence,CRIMINAL ENFORCEMENT                                                                                ,Staff Payment,BA0000308580,6.40,                      
BEIS,The Insolvency Service,11/10/2017,Travel and Subsistence,CRIMINAL ENFORCEMENT                                                                                ,Staff Payment,BA0000308580,57.31,                      
BEIS,The Insolvency Service,11/10/2017,Travel and Subsistence,CRIMINAL ENFORCEMENT                                                                                ,Staff Payment,BA0000308580,103.95,                      
BEIS,The Insolvency Service,11/10/2017,Travel and Subsistence,FINANCE AND COMMERCIAL,Staff Payment,BA0000308551,2.40,                      
BEIS,The Insolvency Service,11/10/2017,Travel and Subsistence,FINANCE AND COMMERCIAL,Staff Payment,BA0000308551,3.00,                      
BEIS,The Insolvency Service,11/10/2017,Travel and Subsistence,FINANCE AND COMMERCIAL,Staff Payment,BA0000308551,3.05,                      
BEIS,The Insolvency Service,11/10/2017,Travel and Subsistence,FINANCE AND COMMERCIAL,Staff Payment,BA0000308551,3.45,                      
BEIS,The Insolvency Service,11/10/2017,Travel and Subsistence,FINANCE AND COMMERCIAL,Staff Payment,BA0000308551,4.49,                      
BEIS,The Insolvency Service,11/10/2017,Travel and Subsistence,FINANCE AND COMMERCIAL,Staff Payment,BA0000308551,4.75,                      
BEIS,The Insolvency Service,11/10/2017,Travel and Subsistence,FINANCE AND COMMERCIAL,Staff Payment,BA0000308551,4.80,                      
BEIS,The Insolvency Service,11/10/2017,Travel and Subsistence,FINANCE AND COMMERCIAL,Staff Payment,BA0000308551,4.84,                      
BEIS,The Insolvency Service,11/10/2017,Travel and Subsistence,FINANCE AND COMMERCIAL,Staff Payment,BA0000308551,5.00,                      
BEIS,The Insolvency Service,11/10/2017,Travel and Subsistence,FINANCE AND COMMERCIAL,Staff Payment,BA0000308551,6.60,                      
BEIS,The Insolvency Service,11/10/2017,Travel and Subsistence,FINANCE AND COMMERCIAL,Staff Payment,BA0000308551,10.75,                      
BEIS,The Insolvency Service,11/10/2017,Travel and Subsistence,FINANCE AND COMMERCIAL,Staff Payment,BA0000308551,12.30,                      
BEIS,The Insolvency Service,11/10/2017,Travel and Subsistence,FINANCE AND COMMERCIAL,Staff Payment,BA0000308551,13.45,                      
BEIS,The Insolvency Service,11/10/2017,Travel and Subsistence,FINANCE AND COMMERCIAL,Staff Payment,BA0000308551,14.50,                      
BEIS,The Insolvency Service,11/10/2017,Travel and Subsistence,FINANCE AND COMMERCIAL,Staff Payment,BA0000308551,15.00,                      
BEIS,The Insolvency Service,11/10/2017,Travel and Subsistence,FINANCE AND COMMERCIAL                                                                              ,Staff Payment,BA0000308551,5.50,                      
BEIS,The Insolvency Service,11/10/2017,Travel and Subsistence,FINANCE AND COMMERCIAL                                                                              ,Staff Payment,BA0000308551,57.00,                      
BEIS,The Insolvency Service,11/10/2017,Travel and Subsistence,FINANCE AND COMMERCIAL                                                                              ,Staff Payment,BA0000308551,74.00,                      
BEIS,The Insolvency Service,11/10/2017,Travel and Subsistence,FINANCE AND COMMERCIAL                                                                              ,Staff Payment,BA0000308551,5.00,                      
BEIS,The Insolvency Service,11/10/2017,Travel and Subsistence,FINANCE AND COMMERCIAL                                                                              ,Staff Payment,BA0000308551,5.00,                      
BEIS,The Insolvency Service,11/10/2017,Travel and Subsistence,FINANCE AND COMMERCIAL                                                                              ,Staff Payment,BA0000308551,5.20,                      
BEIS,The Insolvency Service,11/10/2017,Travel and Subsistence,FINANCE AND COMMERCIAL                                                                              ,Staff Payment,BA0000308551,18.00,                      
BEIS,The Insolvency Service,11/10/2017,Travel and Subsistence,FINANCE AND COMMERCIAL                                                                              ,Staff Payment,BA0000308551,32.00,                      
BEIS,The Insolvency Service,11/10/2017,Travel and Subsistence,FINANCE AND COMMERCIAL                                                                              ,Staff Payment,BA0000308551,69.50,                      
BEIS,The Insolvency Service,11/10/2017,Travel and Subsistence,FINANCE AND COMMERCIAL                                                                              ,Staff Payment,BA0000308551,13.40,                      
BEIS,The Insolvency Service,11/10/2017,Travel and Subsistence,FINANCE AND COMMERCIAL                                                                              ,Staff Payment,BA0000308551,15.00,                      
BEIS,The Insolvency Service,11/10/2017,Travel and Subsistence,FINANCE AND COMMERCIAL                                                                              ,Staff Payment,BA0000308551,18.00,                      
BEIS,The Insolvency Service,11/10/2017,Travel and Subsistence,FINANCE AND COMMERCIAL                                                                              ,Staff Payment,BA0000308551,35.00,                      
BEIS,The Insolvency Service,11/10/2017,Travel and Subsistence,FINANCE AND COMMERCIAL                                                                              ,Staff Payment,BA0000308551,80.70,                      
BEIS,The Insolvency Service,11/10/2017,Travel and Subsistence,FINANCE AND COMMERCIAL                                                                              ,Staff Payment,BA0000308551,97.00,                      
BEIS,The Insolvency Service,11/10/2017,Travel and Subsistence,FINANCE AND COMMERCIAL                                                                              ,Staff Payment,BA0000308551,15.20,                      
BEIS,The Insolvency Service,11/10/2017,Travel and Subsistence,FINANCE AND COMMERCIAL                                                                              ,Staff Payment,BA0000308551,18.00,                      
BEIS,The Insolvency Service,11/10/2017,Travel and Subsistence,FINANCE AND COMMERCIAL                                                                              ,Staff Payment,BA0000308551,29.00,                      
BEIS,The Insolvency Service,11/10/2017,Travel and Subsistence,FINANCE AND COMMERCIAL                                                                              ,Staff Payment,BA0000308551,92.90,                      
BEIS,The Insolvency Service,11/10/2017,Travel and Subsistence,FINANCE AND COMMERCIAL                                                                              ,Staff Payment,BA0000308551,165.60,                      
BEIS,The Insolvency Service,11/10/2017,Travel and Subsistence,INFORMATION TECHNOLOGY                                                                              ,Staff Payment,BA0000308580,5.00,                      
BEIS,The Insolvency Service,11/10/2017,Travel and Subsistence,INFORMATION TECHNOLOGY                                                                              ,Staff Payment,BA0000308580,4.59,                      
BEIS,The Insolvency Service,11/10/2017,Travel and Subsistence,INFORMATION TECHNOLOGY                                                                              ,Staff Payment,BA0000308580,5.00,                      
BEIS,The Insolvency Service,11/10/2017,Travel and Subsistence,INFORMATION TECHNOLOGY                                                                              ,Staff Payment,BA0000308580,5.45,                      
BEIS,The Insolvency Service,11/10/2017,Travel and Subsistence,INFORMATION TECHNOLOGY                                                                              ,Staff Payment,BA0000308580,4.60,                      
BEIS,The Insolvency Service,11/10/2017,Travel and Subsistence,INFORMATION TECHNOLOGY                                                                              ,Staff Payment,BA0000308580,5.00,                      
BEIS,The Insolvency Service,11/10/2017,Travel and Subsistence,INFORMATION TECHNOLOGY                                                                              ,Staff Payment,BA0000308580,9.78,                      
BEIS,The Insolvency Service,11/10/2017,Travel and Subsistence,INFORMATION TECHNOLOGY                                                                              ,Staff Payment,BA0000308580,4.95,                      
BEIS,The Insolvency Service,11/10/2017,Travel and Subsistence,INFORMATION TECHNOLOGY                                                                              ,Staff Payment,BA0000308580,5.00,                      
BEIS,The Insolvency Service,11/10/2017,Travel and Subsistence,INVESTIGATIONS & ENFORCEMENT                                                                        ,Staff Payment,BA0000308551,5.00,
